Workbook

Sheet Stavba
C2: Položkový rozpočet stavby | H2: Datum: | I2: =TODAY() -> 2022-09-16
C5: Stavba : | D5: 3326 | E5: Oprava místních komunikací Turnov
C7: Objednatel : | D7: Město TURNOV | H7: IČO : | I7: 00276227
D8: Antonína Dvořáka 335 | H8: DIČ : | I8: CZ00276227
C9: 51122 | D9: Turnov
C11: Zhotovitel : | D11: . | H11: IČO :
H12: DIČ :
C14: Za zhotovitele : | H14: Za objednatele :
C16: _______________ | H16: _______________
J18: Rozpočtové náklady
B19: Základ pro DPH | D19: 15 | E19: % | I19: =ROUND(G35,0) -> 0
B20: DPH | D20: =SazbaDPH1 -> 15 | E20: % | I20: =ROUND(I19*D20/100,0) -> 0
B21: Základ pro DPH | D21: 21 | E21: % | I21: =ROUND(H35,0) -> 0
B22: DPH | D22: =SazbaDPH2 -> 21 | E22: % | I22: =ROUND(I21*D21/100,0) -> 0
B23: Cena celkem za stavbu | I23: =SUM(I19:I22) -> 0
B26: Rekapitulace stavebních objektů a provozních souborů
B28: Číslo a název objektu / provozního souboru | F28: Cena celkem | G28: =CONCATENATE("Základ DPH ",SazbaDPH1," %") -> Základ DPH 15 % | H28: =CONCATENATE("Základ DPH ",SazbaDPH2," %") -> Základ DPH 21 % | I28: DPH celkem | J28: %
B29: 103 | C29: Oprava MK "Nudvojovice - V úvozu" | F29: =G29+H29+I29 -> 0 | G29: 0 | H29: =SUM(H40) -> 0 | I29: =(G29*SazbaDPH1)/100+(H29*SazbaDPH2)/100 -> 0 | J29: =IF(CelkemObjekty=0,"",F29/CelkemObjekty*100) -> 
B30: 104 | C30: Oprava MK "Mašov - V Koutě" | F30: 0 | G30: 0 | H30: =SUM(H41) -> 0 | I30: 0
B31: 105 | C31: Oprava MK "Mašov - Mašovská u hřbitova" | F31: 0 | G31: 0 | H31: =SUM(H42:H44) -> 0 | I31: 0
B32: 106 | C32: Oprava ZP na ppč. 130/1 a 141/2 v kú. Turnov | F32: 0 | G32: 0 | H32: =SUM(H45) -> 0 | I32: 0
B33: 107 | C33: Vesecko - Rozšíření zpevněné plochy | F33: 0 | G33: 0 | H33: =SUM(H46) -> 0 | I33: 0
B34: 108 | C34: Oprava komunikace "Ve Struhách" | F34: 0 | G34: 0 | H34: =SUM(H47) -> 0 | I34: 0
B35: Celkem za stavbu | F35: =SUM(F29:F34) -> 0 | G35: =SUM(G29:G34) -> 0 | H35: =SUM(H29:H34) -> 0 | I35: =SUM(I29:I34) -> 0 | J35: =IF(CelkemObjekty=0,"",F35/CelkemObjekty*100) -> 
B37: Rekapitulace stavebních rozpočtů
B39: Číslo objektu | C39: Číslo a název rozpočtu | F39: Cena celkem | G39: =CONCATENATE("Základ DPH ",SazbaDPH1," %") -> Základ DPH 15 % | H39: =CONCATENATE("Základ DPH ",SazbaDPH2," %") -> Základ DPH 21 % | I39: DPH celkem | J39: %
B40: 103 | C40: 3326/102 Oprava MK "Nudvojovice - V úvozu" | F40: =G40+H40+I40 -> 0 | G40: 0 | H40: =SUM('103 3326102 KL'!C23) -> 0 | I40: =(G40*SazbaDPH1)/100+(H40*SazbaDPH2)/100 -> 0 | J40: =IF(CelkemObjekty=0,"",F40/CelkemObjekty*100) -> 
B41: 104 | C41: 3326/104 Oprava MK "Mašov - V Koutě" | F41: 0 | G41: 0 | H41: =SUM('104 3326104 KL'!C23) -> 0 | I41: 0
B42: 105 | C42: 3326/105.1 Oprava MK "Mašov-Mašovská u hřbitova"-úsek k ČOV | F42: 0 | G42: 0 | H42: =SUM('105 3326105.1 KL'!C23) -> 0 | I42: 0
B43: 105 | C43: 3326/105.2 Oprava MK "Mašov-Mašovská u hřbitova"-křiž. u ČOV | F43: 0 | G43: 0 | H43: =SUM('105 3326105.2 KL'!C23) -> 0 | I43: 0
B44: 105 | C44: 3326/105.3 Oprava MK "Mašov-Mašovská u hřbitova"-úsek do ČOV | F44: 0 | G44: 0 | H44: =SUM('105 3326105.3 KL'!C23) -> 0 | I44: 0
B45: 106 | C45: 3326/106 Oprava ZP na ppč. 130/1 a 141/2 v kú. Turnov | F45: 0 | G45: 0 | H45: =SUM('106 3326106 KL'!C23) -> 0 | I45: 0
B46: 107 | C46: 3326/107 Vesecko - Rozšíření pruhu zpevněné plochy -3,0 m | F46: 0 | G46: 0 | H46: =SUM('107 3326107 KL'!C23) -> 0 | I46: 0
B47: 108 | C47: 3326/108 Oprava komunikace "Ve Struhách" od čp. 908 | F47: 0 | G47: 0 | H47: =SUM('108 3326108 KL'!C23) -> 0 | I47: 0
B48: Celkem za stavbu | F48: =SUM(F40:F47) -> 0 | G48: =SUM(G40:G47) -> 0 | H48: =SUM(H40:H47) -> 0 | I48: =SUM(I40:I47) -> 0 | J48: =IF(CelkemObjekty=0,"",F48/CelkemObjekty*100) -> 

Sheet 103 3326102 KL
A1: POLOŽKOVÝ ROZPOČET
A2: Rozpočet | C2: 3326/102 | D2: Oprava MK "Nudvojovice - V úvozu" | F2: JKSO | G2: 822.29
A4: Objekt | F4: SKP
A5: 103 | C5: Oprava MK "Nudvojovice - V úvozu" | F5: Měrná jednotka | G5: m2
A6: Stavba | F6: Počet jednotek | G6: 0
A7: 3326 | C7: Oprava místních komunikací Turnov | F7: Náklady na m.j. | G7: =IF(G6=0,,ROUND((F30+F32)/G6,1)) -> 0
A8: Projektant | F8: Typ rozpočtu
A9: Zpracovatel projektu
A10: Objednatel | C10: Město TURNOV
A11: Dodavatel | C11: . | F11: Zakázkové číslo
A12: Rozpočtoval | F12: Počet listů
A13: ROZPOČTOVÉ NÁKLADY
A14: Základní rozpočtové náklady | D14: Ostatní rozpočtové náklady
B15: HSV celkem | C15: ='103 3326102 Rek'!E13 -> 0 | D15: ='103 3326102 Rek'!A18 -> Zařízení staveniště | G15: ='103 3326102 Rek'!I18 -> 0
A16: Z | B16: PSV celkem | C16: ='103 3326102 Rek'!F13 -> 0 | D16: ='103 3326102 Rek'!A19 -> Kompletační činnost (IČD) | G16: ='103 3326102 Rek'!I19 -> 0
A17: R | B17: M práce celkem | C17: ='103 3326102 Rek'!H13 -> 0 | D17: ='103 3326102 Rek'!A20 -> Vytýčení stavby a podz. inženýrských sítí | G17: ='103 3326102 Rek'!I20 -> 0
A18: N | B18: M dodávky celkem | C18: ='103 3326102 Rek'!G13 -> 0 | D18: ='103 3326102 Rek'!A21 -> DIO | G18: ='103 3326102 Rek'!I21 -> 0
A19: ZRN celkem | C19: =SUM(C15:C18) -> 0
A21: HZS | C21: ='103 3326102 Rek'!I13 -> 0
A22: ZRN+HZS | C22: =C19+C21 -> 0
A23: ZRN+ost.náklady+HZS | C23: =C22+G23 -> 0 | D23: Ostatní náklady celkem | G23: ='103 3326102 Rek'!H22 -> 0
A24: Vypracoval | D24: Za zhotovitele | F24: Za objednatele
A25: Jméno : | D25: Jméno : | F25: Jméno :
A26: Datum : | D26: Datum : | F26: Datum :
A28: Podpis : | D28: Podpis: | F28: Podpis:
A30: Základ pro DPH | C30: 21 | D30: % | F30: =C23-F32 -> 0
A31: DPH | C31: =C30 -> 21 | D31: % | F31: =ROUND(PRODUCT(F30,C31/100),0) -> 0
A32: Základ pro DPH | C32: 0 | D32: % | F32: 0
A33: DPH | C33: =C32 -> 0 | D33: % | F33: =ROUND(PRODUCT(F32,C33/100),0) -> 0
A34: CENA ZA OBJEKT CELKEM | F34: =ROUND(SUM(F30:F33),0) -> 0
A36: Poznámka :

Sheet 103 3326102 Rek
A1: Stavba : | C1: 3326 Oprava místních komunikací Turnov | G1: Rozpočet : | H1: 3326/102
A2: Objekt : | C2: 103 Oprava MK "Nudvojovice - V úvozu" | G2: Oprava MK "Nudvojovice - V úvozu"
A4: REKAPITULACE STAVEBNÍCH DÍLŮ
B6: Stavební díl | E6: HSV | F6: PSV | G6: Dodávka | H6: Montáž | I6: HZS
A7: ='103 3326102 Pol'!B7 -> 1 | B7: ='103 3326102 Pol'!C7 -> Zemní práce | E7: ='103 3326102 Pol'!BA16 -> 0 | F7: ='103 3326102 Pol'!BB16 -> 0 | G7: ='103 3326102 Pol'!BC16 -> 0 | H7: ='103 3326102 Pol'!BD16 -> 0 | I7: ='103 3326102 Pol'!BE16 -> 0
A8: ='103 3326102 Pol'!B17 -> 5 | B8: ='103 3326102 Pol'!C17 -> Komunikace | E8: ='103 3326102 Pol'!BA33 -> 0 | F8: ='103 3326102 Pol'!BB33 -> 0 | G8: ='103 3326102 Pol'!BC33 -> 0 | H8: ='103 3326102 Pol'!BD33 -> 0 | I8: ='103 3326102 Pol'!BE33 -> 0
A9: ='103 3326102 Pol'!B34 -> 8 | B9: ='103 3326102 Pol'!C34 -> Trubní vedení | E9: ='103 3326102 Pol'!BA41 -> 0 | F9: ='103 3326102 Pol'!BB41 -> 0 | G9: ='103 3326102 Pol'!BC41 -> 0 | H9: ='103 3326102 Pol'!BD41 -> 0 | I9: ='103 3326102 Pol'!BE41 -> 0
A10: ='103 3326102 Pol'!B42 -> 91 | B10: ='103 3326102 Pol'!C42 -> Doplňující práce na komunikaci | E10: ='103 3326102 Pol'!BA48 -> 0 | F10: ='103 3326102 Pol'!BB48 -> 0 | G10: ='103 3326102 Pol'!BC48 -> 0 | H10: ='103 3326102 Pol'!BD48 -> 0 | I10: ='103 3326102 Pol'!BE48 -> 0
A11: ='103 3326102 Pol'!B49 -> 93 | B11: ='103 3326102 Pol'!C49 -> Dokončovací práce inženýrských staveb | E11: ='103 3326102 Pol'!BA57 -> 0 | F11: ='103 3326102 Pol'!BB57 -> 0 | G11: ='103 3326102 Pol'!BC57 -> 0 | H11: ='103 3326102 Pol'!BD57 -> 0 | I11: ='103 3326102 Pol'!BE57 -> 0
A12: ='103 3326102 Pol'!B58 -> 99 | B12: ='103 3326102 Pol'!C58 -> Staveništní přesun hmot | E12: ='103 3326102 Pol'!BA60 -> 0 | F12: ='103 3326102 Pol'!BB60 -> 0 | G12: ='103 3326102 Pol'!BC60 -> 0 | H12: ='103 3326102 Pol'!BD60 -> 0 | I12: ='103 3326102 Pol'!BE60 -> 0
B13: CELKEM OBJEKT | E13: =SUM(E7:E12) -> 0 | F13: =SUM(F7:F12) -> 0 | G13: =SUM(G7:G12) -> 0 | H13: =SUM(H7:H12) -> 0 | I13: =SUM(I7:I12) -> 0
A15: VEDLEJŠÍ ROZPOČTOVÉ NÁKLADY
A17: Název VRN | E17: Kč | I17: Kč
A18: Zařízení staveniště | E18: 0 | I18: =E18+F18*G18/100 -> 0 | BA18: 2
A19: Kompletační činnost (IČD) | E19: 0 | I19: =E19+F19*G19/100 -> 0 | BA19: 2
A20: Vytýčení stavby a podz. inženýrských sítí | E20: 0 | I20: =E20+F20*G20/100 -> 0 | BA20: 0
A21: DIO | E21: 0 | I21: =E21+F21*G21/100 -> 0 | BA21: 0
B22: CELKEM VRN | H22: =SUM(I18:I21) -> 0

Sheet 103 3326102 Pol
A1: Položkový rozpočet
A3: Stavba : | C3: 3326 Oprava místních komunikací Turnov | E3: Rozpočet: | F3: ='103 3326102 Rek'!H1 -> 3326/102
A4: Objekt : | C4: 103 Oprava MK "Nudvojovice - V úvozu" | E4: ='103 3326102 Rek'!G2 -> Oprava MK "Nudvojovice - V úvozu"
A6: P.č. | B6: Číslo položky | C6: Název položky | D6: MJ | E6: množství | F6: cena / MJ | G6: celkem (Kč) | H6: Jednotková hmotnost | I6: Celková hmotnost | J6: Jednotková dem.hmot. | K6: Celková dem.hmot.
A7: Díl: | B7: 1 | C7: Zemní práce | O7: 1
A8: 1 | B8: 113107515R00 | C8: Odstranění podkladu pl. 50 m2,kam.drcené tl.15 cm | D8: m2 | E8: 4 | G8: =E8*F8 -> 0 | H8: 0 | I8: =E8*H8 -> 0 | J8: -0.33 | K8: =E8*J8 -> -1.32 | O8: 2 | AA8: 1 | AB8: 1 | AC8: 1 | AZ8: 1 | BA8: =IF(AZ8=1,G8,0) -> 0 | BB8: =IF(AZ8=2,G8,0) -> 0 | BC8: =IF(AZ8=3,G8,0) -> 0 | BD8: =IF(AZ8=4,G8,0) -> 0 | BE8: =IF(AZ8=5,G8,0) -> 0 | CA8: 1 | CB8: 1
C9: Pro osazení obrubníků :10,00*0,40 | E9: 4 | M9: Pro osazení obrubníků :10,00*0,40
A10: 2 | B10: 113108320R00 | C10: Odstranění asfaltové vrstvy pl. do 50 m2, tl.20 cm | D10: m2 | E10: 4 | G10: =E10*F10 -> 0 | H10: 0 | I10: =E10*H10 -> 0 | J10: -0.44 | K10: =E10*J10 -> -1.76 | O10: 2 | AA10: 1 | AB10: 1 | AC10: 1 | AZ10: 1 | BA10: =IF(AZ10=1,G10,0) -> 0 | BB10: =IF(AZ10=2,G10,0) -> 0 | BC10: =IF(AZ10=3,G10,0) -> 0 | BD10: =IF(AZ10=4,G10,0) -> 0 | BE10: =IF(AZ10=5,G10,0) -> 0 | CA10: 1 | CB10: 1
C11: Pro osazení obrubníků :10,00*0,40 | E11: 4 | M11: Pro osazení obrubníků :10,00*0,40
A12: 3 | B12: 979082113RSZ | C12: Vodorovná doprava suti po suchu na skládku zhotovitele | D12: t | E12: 3.08 | G12: =E12*F12 -> 0 | H12: 0 | I12: =E12*H12 -> 0 | J12: 0 | K12: =E12*J12 -> 0 | O12: 2 | AA12: 1 | AB12: 1 | AC12: 1 | AZ12: 1 | BA12: =IF(AZ12=1,G12,0) -> 0 | BB12: =IF(AZ12=2,G12,0) -> 0 | BC12: =IF(AZ12=3,G12,0) -> 0 | BD12: =IF(AZ12=4,G12,0) -> 0 | BE12: =IF(AZ12=5,G12,0) -> 0 | CA12: 1 | CB12: 1
A13: 4 | B13: 979089001R00 | C13: Poplatek za uložení odpadního štěrku a kameniva skupina odpadu 010408 | D13: t | E13: 1.32 | G13: =E13*F13 -> 0 | H13: 0 | I13: =E13*H13 -> 0 | J13: 0 | K13: =E13*J13 -> 0 | O13: 2 | AA13: 1 | AB13: 0 | AC13: 0 | AZ13: 1 | BA13: =IF(AZ13=1,G13,0) -> 0 | BB13: =IF(AZ13=2,G13,0) -> 0 | BC13: =IF(AZ13=3,G13,0) -> 0 | BD13: =IF(AZ13=4,G13,0) -> 0 | BE13: =IF(AZ13=5,G13,0) -> 0 | CA13: 1 | CB13: 0
A14: 5 | B14: 979990112RRA | C14: Poplatek za skládku suti - obalované kam. - asfalt | D14: t | E14: 1.76 | G14: =E14*F14 -> 0 | H14: 0 | I14: =E14*H14 -> 0 | J14: 0 | K14: =E14*J14 -> 0 | O14: 2 | AA14: 1 | AB14: 1 | AC14: 1 | AZ14: 1 | BA14: =IF(AZ14=1,G14,0) -> 0 | BB14: =IF(AZ14=2,G14,0) -> 0 | BC14: =IF(AZ14=3,G14,0) -> 0 | BD14: =IF(AZ14=4,G14,0) -> 0 | BE14: =IF(AZ14=5,G14,0) -> 0 | CA14: 1 | CB14: 1
C15: Položka je určena pro suť o velikosti kusu do 30x30 cm (technologický materiál určený k recyklaci). | L15: Položka je určena pro suť o velikosti kusu do 30x30 cm (technologický materiál určený k recyklaci). | O15: 3
B16: Celkem za | C16: 1 Zemní práce | G16: =SUM(G7:G15) -> 0 | I16: =SUM(I7:I15) -> 0 | K16: =SUM(K7:K15) -> -3.08 | O16: 4 | BA16: =SUM(BA7:BA15) -> 0 | BB16: =SUM(BB7:BB15) -> 0 | BC16: =SUM(BC7:BC15) -> 0 | BD16: =SUM(BD7:BD15) -> 0 | BE16: =SUM(BE7:BE15) -> 0
A17: Díl: | B17: 5 | C17: Komunikace | O17: 1
A18: 6 | B18: 565131211RT2 | C18: Podklad z obal kamen. ACP 16+, š.nad 3 m, tl. 5 cm plochy 201-1000 m2 | D18: m2 | E18: 60 | G18: =E18*F18 -> 0 | H18: 0.13188 | I18: =E18*H18 -> 7.9128 | J18: 0 | K18: =E18*J18 -> 0 | O18: 2 | AA18: 1 | AB18: 1 | AC18: 1 | AZ18: 1 | BA18: =IF(AZ18=1,G18,0) -> 0 | BB18: =IF(AZ18=2,G18,0) -> 0 | BC18: =IF(AZ18=3,G18,0) -> 0 | BD18: =IF(AZ18=4,G18,0) -> 0 | BE18: =IF(AZ18=5,G18,0) -> 0 | CA18: 1 | CB18: 1
C19: Plocha křižovatky:60,00 | E19: 60 | M19: Plocha křižovatky:60,00
A20: 7 | B20: 566301111R00 | C20: Úprava krytu kamenivem drceným do 0,06 m3/m2 | D20: m2 | E20: 60 | G20: =E20*F20 -> 0 | H20: 0.09848 | I20: =E20*H20 -> 5.9088 | J20: 0 | K20: =E20*J20 -> 0 | O20: 2 | AA20: 1 | AB20: 1 | AC20: 1 | AZ20: 1 | BA20: =IF(AZ20=1,G20,0) -> 0 | BB20: =IF(AZ20=2,G20,0) -> 0 | BC20: =IF(AZ20=3,G20,0) -> 0 | BD20: =IF(AZ20=4,G20,0) -> 0 | BE20: =IF(AZ20=5,G20,0) -> 0 | CA20: 1 | CB20: 1
C21: Plocha křižovatky:60,00 | E21: 60 | M21: Plocha křižovatky:60,00
A22: 8 | B22: 569831111R00 | C22: Zpevnění krajnic štěrkodrtí tloušťky 10 cm | D22: m2 | E22: 41.25 | G22: =E22*F22 -> 0 | H22: 0.18776 | I22: =E22*H22 -> 7.7451 | J22: 0 | K22: =E22*J22 -> 0 | O22: 2 | AA22: 1 | AB22: 1 | AC22: 1 | AZ22: 1 | BA22: =IF(AZ22=1,G22,0) -> 0 | BB22: =IF(AZ22=2,G22,0) -> 0 | BC22: =IF(AZ22=3,G22,0) -> 0 | BD22: =IF(AZ22=4,G22,0) -> 0 | BE22: =IF(AZ22=5,G22,0) -> 0 | CA22: 1 | CB22: 1
C23: Podél komunikace:(65,00+2*25)*0,25 | E23: 28.75 | M23: Podél komunikace:(65,00+2*25)*0,25
C24: Křižovatka:25,00*0,50 | E24: 12.5 | M24: Křižovatka:25,00*0,50
A25: 9 | B25: 572713112R00 | C25: Vyrovnání povrchu krytů kamen. obaleným asfaltem | D25: t | E25: 45 | G25: =E25*F25 -> 0 | H25: 1 | I25: =E25*H25 -> 45 | J25: 0 | K25: =E25*J25 -> 0 | O25: 2 | AA25: 1 | AB25: 1 | AC25: 1 | AZ25: 1 | BA25: =IF(AZ25=1,G25,0) -> 0 | BB25: =IF(AZ25=2,G25,0) -> 0 | BC25: =IF(AZ25=3,G25,0) -> 0 | BD25: =IF(AZ25=4,G25,0) -> 0 | BE25: =IF(AZ25=5,G25,0) -> 0 | CA25: 1 | CB25: 1
C26: Plocha komunikace a křižovatky:450,00*0,08/2*2,5 | E26: 45 | M26: Plocha komunikace a křižovatky:450,00*0,08/2*2,5
A27: 10 | B27: 573111111R00 | C27: Postřik živičný infiltr.+ posyp, asfalt. 0,60kg/m2 | D27: m2 | E27: 510 | G27: =E27*F27 -> 0 | H27: 0.00561 | I27: =E27*H27 -> 2.8611 | J27: 0 | K27: =E27*J27 -> 0 | O27: 2 | AA27: 1 | AB27: 1 | AC27: 1 | AZ27: 1 | BA27: =IF(AZ27=1,G27,0) -> 0 | BB27: =IF(AZ27=2,G27,0) -> 0 | BC27: =IF(AZ27=3,G27,0) -> 0 | BD27: =IF(AZ27=4,G27,0) -> 0 | BE27: =IF(AZ27=5,G27,0) -> 0 | CA27: 1 | CB27: 1
C28: Plocha komunikace a křižovatky:450,00+60,00 | E28: 510 | M28: Plocha komunikace a křižovatky:450,00+60,00
A29: 11 | B29: 573231126R00 | C29: Postřik spojovací z KAE množství zbytkového asfaltu 0,6 kg/m2 | D29: m2 | E29: 510 | G29: =E29*F29 -> 0 | H29: 0.0005 | I29: =E29*H29 -> 0.255 | J29: 0 | K29: =E29*J29 -> 0 | O29: 2 | AA29: 1 | AB29: 1 | AC29: 1 | AZ29: 1 | BA29: =IF(AZ29=1,G29,0) -> 0 | BB29: =IF(AZ29=2,G29,0) -> 0 | BC29: =IF(AZ29=3,G29,0) -> 0 | BD29: =IF(AZ29=4,G29,0) -> 0 | BE29: =IF(AZ29=5,G29,0) -> 0 | CA29: 1 | CB29: 1
C30: Plocha komunikace a křižovatky:450,00+60,00 | E30: 510 | M30: Plocha komunikace a křižovatky:450,00+60,00
A31: 12 | B31: 577131211RT2 | C31: Beton asfalt. ACO 8,nebo ACO 11, do 3 m, tl. 4 cm plochy 201-1000 m2 | D31: m2 | E31: 510 | G31: =E31*F31 -> 0 | H31: 0.10141 | I31: =E31*H31 -> 51.7191 | J31: 0 | K31: =E31*J31 -> 0 | O31: 2 | AA31: 1 | AB31: 1 | AC31: 1 | AZ31: 1 | BA31: =IF(AZ31=1,G31,0) -> 0 | BB31: =IF(AZ31=2,G31,0) -> 0 | BC31: =IF(AZ31=3,G31,0) -> 0 | BD31: =IF(AZ31=4,G31,0) -> 0 | BE31: =IF(AZ31=5,G31,0) -> 0 | CA31: 1 | CB31: 1
C32: Plocha komunikace a křižovatky:450,00+60,00 | E32: 510 | M32: Plocha komunikace a křižovatky:450,00+60,00
B33: Celkem za | C33: 5 Komunikace | G33: =SUM(G17:G32) -> 0 | I33: =SUM(I17:I32) -> 121.4019 | K33: =SUM(K17:K32) -> 0 | O33: 4 | BA33: =SUM(BA17:BA32) -> 0 | BB33: =SUM(BB17:BB32) -> 0 | BC33: =SUM(BC17:BC32) -> 0 | BD33: =SUM(BD17:BD32) -> 0 | BE33: =SUM(BE17:BE32) -> 0
A34: Díl: | B34: 8 | C34: Trubní vedení | O34: 1
A35: 13 | B35: 899331111R00 | C35: Výšková úprava vstupu do 20 cm, zvýšení poklopu | D35: kus | E35: 6 | G35: =E35*F35 -> 0 | H35: 0.43094 | I35: =E35*H35 -> 2.58564 | J35: 0 | K35: =E35*J35 -> 0 | O35: 2 | AA35: 1 | AB35: 0 | AC35: 0 | AZ35: 1 | BA35: =IF(AZ35=1,G35,0) -> 0 | BB35: =IF(AZ35=2,G35,0) -> 0 | BC35: =IF(AZ35=3,G35,0) -> 0 | BD35: =IF(AZ35=4,G35,0) -> 0 | BE35: =IF(AZ35=5,G35,0) -> 0 | CA35: 1 | CB35: 0
C36: Kanalizace:5 | E36: 5 | M36: Kanalizace:5
C37: Vodoměrná šachta:1 | E37: 1 | M37: Vodoměrná šachta:1
A38: 14 | B38: 899431111R00 | C38: Výšková úprava do 20 cm, zvýšení krytu šoupěte | D38: kus | E38: 5 | G38: =E38*F38 -> 0 | H38: 0.3159 | I38: =E38*H38 -> 1.5795 | J38: 0 | K38: =E38*J38 -> 0 | O38: 2 | AA38: 1 | AB38: 1 | AC38: 1 | AZ38: 1 | BA38: =IF(AZ38=1,G38,0) -> 0 | BB38: =IF(AZ38=2,G38,0) -> 0 | BC38: =IF(AZ38=3,G38,0) -> 0 | BD38: =IF(AZ38=4,G38,0) -> 0 | BE38: =IF(AZ38=5,G38,0) -> 0 | CA38: 1 | CB38: 1
C39: Vodovod:4 | E39: 4 | M39: Vodovod:4
C40: Hydrant:1 | E40: 1 | M40: Hydrant:1
B41: Celkem za | C41: 8 Trubní vedení | G41: =SUM(G34:G40) -> 0 | I41: =SUM(I34:I40) -> 4.16514 | K41: =SUM(K34:K40) -> 0 | O41: 4 | BA41: =SUM(BA34:BA40) -> 0 | BB41: =SUM(BB34:BB40) -> 0 | BC41: =SUM(BC34:BC40) -> 0 | BD41: =SUM(BD34:BD40) -> 0 | BE41: =SUM(BE34:BE40) -> 0
A42: Díl: | B42: 91 | C42: Doplňující práce na komunikaci | O42: 1
A43: 15 | B43: 917762111RT5 | C43: Osazení ležat. obrub. bet. s opěrou,lože z C 12/15 včetně obrubníku ABO 10 100/10/25 | D43: m | E43: 10 | G43: =E43*F43 -> 0 | H43: 0.24358 | I43: =E43*H43 -> 2.4358 | J43: 0 | K43: =E43*J43 -> 0 | O43: 2 | AA43: 1 | AB43: 1 | AC43: 1 | AZ43: 1 | BA43: =IF(AZ43=1,G43,0) -> 0 | BB43: =IF(AZ43=2,G43,0) -> 0 | BC43: =IF(AZ43=3,G43,0) -> 0 | BD43: =IF(AZ43=4,G43,0) -> 0 | BE43: =IF(AZ43=5,G43,0) -> 0 | CA43: 1 | CB43: 1
A44: 16 | B44: 918101111R00 | C44: Lože pod obrubníky nebo obruby dlažeb z C 12/15 | D44: m3 | E44: 0.4 | G44: =E44*F44 -> 0 | H44: 2.525 | I44: =E44*H44 -> 1.01 | J44: 0 | K44: =E44*J44 -> 0 | O44: 2 | AA44: 1 | AB44: 1 | AC44: 1 | AZ44: 1 | BA44: =IF(AZ44=1,G44,0) -> 0 | BB44: =IF(AZ44=2,G44,0) -> 0 | BC44: =IF(AZ44=3,G44,0) -> 0 | BD44: =IF(AZ44=4,G44,0) -> 0 | BE44: =IF(AZ44=5,G44,0) -> 0 | CA44: 1 | CB44: 1
C45: Obrubníky:10,00*0,40*0,10 | E45: 0.4 | M45: Obrubníky:10,00*0,40*0,10
A46: 17 | B46: 919731122R00 | C46: Zarovnání styčné plochy živičné tl. do 10 cm | D46: m | E46: 4 | G46: =E46*F46 -> 0 | H46: 0 | I46: =E46*H46 -> 0 | J46: 0 | K46: =E46*J46 -> 0 | O46: 2 | AA46: 1 | AB46: 1 | AC46: 1 | AZ46: 1 | BA46: =IF(AZ46=1,G46,0) -> 0 | BB46: =IF(AZ46=2,G46,0) -> 0 | BC46: =IF(AZ46=3,G46,0) -> 0 | BD46: =IF(AZ46=4,G46,0) -> 0 | BE46: =IF(AZ46=5,G46,0) -> 0 | CA46: 1 | CB46: 1
A47: 18 | B47: 919735114R00 | C47: Řezání stávajícího živičného krytu tl. 15 - 20 cm | D47: m | E47: 20 | G47: =E47*F47 -> 0 | H47: 0 | I47: =E47*H47 -> 0 | J47: 0 | K47: =E47*J47 -> 0 | O47: 2 | AA47: 1 | AB47: 1 | AC47: 1 | AZ47: 1 | BA47: =IF(AZ47=1,G47,0) -> 0 | BB47: =IF(AZ47=2,G47,0) -> 0 | BC47: =IF(AZ47=3,G47,0) -> 0 | BD47: =IF(AZ47=4,G47,0) -> 0 | BE47: =IF(AZ47=5,G47,0) -> 0 | CA47: 1 | CB47: 1
B48: Celkem za | C48: 91 Doplňující práce na komunikaci | G48: =SUM(G42:G47) -> 0 | I48: =SUM(I42:I47) -> 3.4458 | K48: =SUM(K42:K47) -> 0 | O48: 4 | BA48: =SUM(BA42:BA47) -> 0 | BB48: =SUM(BB42:BB47) -> 0 | BC48: =SUM(BC42:BC47) -> 0 | BD48: =SUM(BD42:BD47) -> 0 | BE48: =SUM(BE42:BE47) -> 0
A49: Díl: | B49: 93 | C49: Dokončovací práce inženýrských staveb | O49: 1
A50: 19 | B50: 938909111R00 | C50: Odstranění nánosu s povrchu podkladu štěrkového | D50: m2 | E50: 510 | G50: =E50*F50 -> 0 | H50: 0 | I50: =E50*H50 -> 0 | J50: 0 | K50: =E50*J50 -> 0 | O50: 2 | AA50: 1 | AB50: 1 | AC50: 1 | AZ50: 1 | BA50: =IF(AZ50=1,G50,0) -> 0 | BB50: =IF(AZ50=2,G50,0) -> 0 | BC50: =IF(AZ50=3,G50,0) -> 0 | BD50: =IF(AZ50=4,G50,0) -> 0 | BE50: =IF(AZ50=5,G50,0) -> 0 | CA50: 1 | CB50: 1
C51: Plocha komunikace a křižovatky:450,00+60,00 | E51: 510 | M51: Plocha komunikace a křižovatky:450,00+60,00
A52: 20 | B52: 938909311R00 | C52: Odstranění nánosu z povrchu živičného nebo beton. | D52: m2 | E52: 450 | G52: =E52*F52 -> 0 | H52: 0 | I52: =E52*H52 -> 0 | J52: 0 | K52: =E52*J52 -> 0 | O52: 2 | AA52: 1 | AB52: 1 | AC52: 1 | AZ52: 1 | BA52: =IF(AZ52=1,G52,0) -> 0 | BB52: =IF(AZ52=2,G52,0) -> 0 | BC52: =IF(AZ52=3,G52,0) -> 0 | BD52: =IF(AZ52=4,G52,0) -> 0 | BE52: =IF(AZ52=5,G52,0) -> 0 | CA52: 1 | CB52: 1
C53: Plocha komunikace a křižovatky:450,00 | E53: 450 | M53: Plocha komunikace a křižovatky:450,00
A54: 21 | B54: 938909612R00 | C54: Odstranění nánosu na krajnicích tl. do 20 cm | D54: m2 | E54: 41.25 | G54: =E54*F54 -> 0 | H54: 0 | I54: =E54*H54 -> 0 | J54: -0.252 | K54: =E54*J54 -> -10.395 | O54: 2 | AA54: 1 | AB54: 1 | AC54: 1 | AZ54: 1 | BA54: =IF(AZ54=1,G54,0) -> 0 | BB54: =IF(AZ54=2,G54,0) -> 0 | BC54: =IF(AZ54=3,G54,0) -> 0 | BD54: =IF(AZ54=4,G54,0) -> 0 | BE54: =IF(AZ54=5,G54,0) -> 0 | CA54: 1 | CB54: 1
C55: Podél komunikace:(65,00+2*25)*0,25 | E55: 28.75 | M55: Podél komunikace:(65,00+2*25)*0,25
C56: Křižovatka:25,00*0,50 | E56: 12.5 | M56: Křižovatka:25,00*0,50
B57: Celkem za | C57: 93 Dokončovací práce inženýrských staveb | G57: =SUM(G49:G56) -> 0 | I57: =SUM(I49:I56) -> 0 | K57: =SUM(K49:K56) -> -10.395 | O57: 4 | BA57: =SUM(BA49:BA56) -> 0 | BB57: =SUM(BB49:BB56) -> 0 | BC57: =SUM(BC49:BC56) -> 0 | BD57: =SUM(BD49:BD56) -> 0 | BE57: =SUM(BE49:BE56) -> 0
A58: Díl: | B58: 99 | C58: Staveništní přesun hmot | O58: 1
A59: 22 | B59: 998225111R00 | C59: Přesun hmot, pozemní komunikace, kryt živičný | D59: t | E59: 129.01284 | G59: =E59*F59 -> 0 | H59: 0 | I59: =E59*H59 -> 0 | K59: =E59*J59 -> 0 | O59: 2 | AA59: 7 | AB59: 1 | AC59: 2 | AZ59: 1 | BA59: =IF(AZ59=1,G59,0) -> 0 | BB59: =IF(AZ59=2,G59,0) -> 0 | BC59: =IF(AZ59=3,G59,0) -> 0 | BD59: =IF(AZ59=4,G59,0) -> 0 | BE59: =IF(AZ59=5,G59,0) -> 0 | CA59: 7 | CB59: 1
B60: Celkem za | C60: 99 Staveništní přesun hmot | G60: =SUM(G58:G59) -> 0 | I60: =SUM(I58:I59) -> 0 | K60: =SUM(K58:K59) -> 0 | O60: 4 | BA60: =SUM(BA58:BA59) -> 0 | BB60: =SUM(BB58:BB59) -> 0 | BC60: =SUM(BC58:BC59) -> 0 | BD60: =SUM(BD58:BD59) -> 0 | BE60: =SUM(BE58:BE59) -> 0

Sheet 104 3326104 KL
A1: POLOŽKOVÝ ROZPOČET
A2: Rozpočet | C2: 3326/104 | D2: Oprava MK "Mašov - V Koutě" | F2: JKSO | G2: 822.29
A4: Objekt | F4: SKP
A5: 104 | C5: Oprava MK "Mašov - V Koutě" | F5: Měrná jednotka | G5: m2
A6: Stavba | F6: Počet jednotek | G6: 0
A7: 3326 | C7: Oprava místních komunikací Turnov | F7: Náklady na m.j. | G7: =IF(G6=0,,ROUND((F30+F32)/G6,1)) -> 0
A8: Projektant | F8: Typ rozpočtu
A9: Zpracovatel projektu
A10: Objednatel | C10: Město TURNOV
A11: Dodavatel | C11: . | F11: Zakázkové číslo
A12: Rozpočtoval | F12: Počet listů
A13: ROZPOČTOVÉ NÁKLADY
A14: Základní rozpočtové náklady | D14: Ostatní rozpočtové náklady
B15: HSV celkem | C15: ='104 3326104 Rek'!E12 -> 0 | D15: ='104 3326104 Rek'!A17 -> Zařízení staveniště | G15: ='104 3326104 Rek'!I17 -> 0
A16: Z | B16: PSV celkem | C16: ='104 3326104 Rek'!F12 -> 0 | D16: ='104 3326104 Rek'!A18 -> Kompletační činnost (IČD) | G16: ='104 3326104 Rek'!I18 -> 0
A17: R | B17: M práce celkem | C17: ='104 3326104 Rek'!H12 -> 0 | D17: ='104 3326104 Rek'!A19 -> Vytýčení stavby a podz. inženýrských sítí | G17: ='104 3326104 Rek'!I19 -> 0
A18: N | B18: M dodávky celkem | C18: ='104 3326104 Rek'!G12 -> 0 | D18: ='104 3326104 Rek'!A20 -> DIO | G18: ='104 3326104 Rek'!I20 -> 0
A19: ZRN celkem | C19: =SUM(C15:C18) -> 0
A21: HZS | C21: ='104 3326104 Rek'!I12 -> 0
A22: ZRN+HZS | C22: =C19+C21 -> 0
A23: ZRN+ost.náklady+HZS | C23: =C22+G23 -> 0 | D23: Ostatní náklady celkem | G23: ='104 3326104 Rek'!H21 -> 0
A24: Vypracoval | D24: Za zhotovitele | F24: Za objednatele
A25: Jméno : | D25: Jméno : | F25: Jméno :
A26: Datum : | D26: Datum : | F26: Datum :
A28: Podpis : | D28: Podpis: | F28: Podpis:
A30: Základ pro DPH | C30: 21 | D30: % | F30: =C23-F32 -> 0
A31: DPH | C31: =C30 -> 21 | D31: % | F31: =ROUND(PRODUCT(F30,C31/100),0) -> 0
A32: Základ pro DPH | C32: 0 | D32: % | F32: 0
A33: DPH | C33: =C32 -> 0 | D33: % | F33: =ROUND(PRODUCT(F32,C33/100),0) -> 0
A34: CENA ZA OBJEKT CELKEM | F34: =ROUND(SUM(F30:F33),0) -> 0
A36: Poznámka :

Sheet 104 3326104 Rek
A1: Stavba : | C1: 3326 Oprava místních komunikací Turnov | G1: Rozpočet : | H1: 3326/104
A2: Objekt : | C2: 104 Oprava MK "Mašov - V Koutě" | G2: Oprava MK "Mašov - V Koutě"
A4: REKAPITULACE STAVEBNÍCH DÍLŮ
B6: Stavební díl | E6: HSV | F6: PSV | G6: Dodávka | H6: Montáž | I6: HZS
A7: ='104 3326104 Pol'!B7 -> 5 | B7: ='104 3326104 Pol'!C7 -> Komunikace | E7: ='104 3326104 Pol'!BA30 -> 0 | F7: ='104 3326104 Pol'!BB30 -> 0 | G7: ='104 3326104 Pol'!BC30 -> 0 | H7: ='104 3326104 Pol'!BD30 -> 0 | I7: ='104 3326104 Pol'!BE30 -> 0
A8: ='104 3326104 Pol'!B31 -> 8 | B8: ='104 3326104 Pol'!C31 -> Trubní vedení | E8: ='104 3326104 Pol'!BA33 -> 0 | F8: ='104 3326104 Pol'!BB33 -> 0 | G8: ='104 3326104 Pol'!BC33 -> 0 | H8: ='104 3326104 Pol'!BD33 -> 0 | I8: ='104 3326104 Pol'!BE33 -> 0
A9: ='104 3326104 Pol'!B34 -> 91 | B9: ='104 3326104 Pol'!C34 -> Doplňující práce na komunikaci | E9: ='104 3326104 Pol'!BA37 -> 0 | F9: ='104 3326104 Pol'!BB37 -> 0 | G9: ='104 3326104 Pol'!BC37 -> 0 | H9: ='104 3326104 Pol'!BD37 -> 0 | I9: ='104 3326104 Pol'!BE37 -> 0
A10: ='104 3326104 Pol'!B38 -> 93 | B10: ='104 3326104 Pol'!C38 -> Dokončovací práce inženýrských staveb | E10: ='104 3326104 Pol'!BA45 -> 0 | F10: ='104 3326104 Pol'!BB45 -> 0 | G10: ='104 3326104 Pol'!BC45 -> 0 | H10: ='104 3326104 Pol'!BD45 -> 0 | I10: ='104 3326104 Pol'!BE45 -> 0
A11: ='104 3326104 Pol'!B46 -> 99 | B11: ='104 3326104 Pol'!C46 -> Staveništní přesun hmot | E11: ='104 3326104 Pol'!BA48 -> 0 | F11: ='104 3326104 Pol'!BB48 -> 0 | G11: ='104 3326104 Pol'!BC48 -> 0 | H11: ='104 3326104 Pol'!BD48 -> 0 | I11: ='104 3326104 Pol'!BE48 -> 0
B12: CELKEM OBJEKT | E12: =SUM(E7:E11) -> 0 | F12: =SUM(F7:F11) -> 0 | G12: =SUM(G7:G11) -> 0 | H12: =SUM(H7:H11) -> 0 | I12: =SUM(I7:I11) -> 0
A14: VEDLEJŠÍ ROZPOČTOVÉ NÁKLADY
A16: Název VRN | E16: Kč | I16: Kč
A17: Zařízení staveniště | E17: 0 | I17: =E17+F17*G17/100 -> 0 | BA17: 2
A18: Kompletační činnost (IČD) | E18: 0 | I18: =E18+F18*G18/100 -> 0 | BA18: 2
A19: Vytýčení stavby a podz. inženýrských sítí | E19: 0 | I19: =E19+F19*G19/100 -> 0 | BA19: 0
A20: DIO | E20: 0 | I20: =E20+F20*G20/100 -> 0 | BA20: 0
B21: CELKEM VRN | H21: =SUM(I17:I20) -> 0

Sheet 104 3326104 Pol
A1: Položkový rozpočet
A3: Stavba : | C3: 3326 Oprava místních komunikací Turnov | E3: Rozpočet: | F3: ='104 3326104 Rek'!H1 -> 3326/104
A4: Objekt : | C4: 104 Oprava MK "Mašov - V Koutě" | E4: ='104 3326104 Rek'!G2 -> Oprava MK "Mašov - V Koutě"
A6: P.č. | B6: Číslo položky | C6: Název položky | D6: MJ | E6: množství | F6: cena / MJ | G6: celkem (Kč) | H6: Jednotková hmotnost | I6: Celková hmotnost | J6: Jednotková dem.hmot. | K6: Celková dem.hmot.
A7: Díl: | B7: 5 | C7: Komunikace | O7: 1
A8: 1 | B8: 565131111RT2 | C8: Podklad z obal kamen. ACP 16+, š. do 3 m, tl. 5 cm plochy 201-1000 m2 | D8: m2 | E8: 230 | G8: =E8*F8 -> 0 | H8: 0.13188 | I8: =E8*H8 -> 30.3324 | J8: 0 | K8: =E8*J8 -> 0 | O8: 2 | AA8: 1 | AB8: 1 | AC8: 1 | AZ8: 1 | BA8: =IF(AZ8=1,G8,0) -> 0 | BB8: =IF(AZ8=2,G8,0) -> 0 | BC8: =IF(AZ8=3,G8,0) -> 0 | BD8: =IF(AZ8=4,G8,0) -> 0 | BE8: =IF(AZ8=5,G8,0) -> 0 | CA8: 1 | CB8: 1
C9: Komunikace:175,00 | E9: 175 | M9: Komunikace:175,00
C10: Křižovatka :30,00 | E10: 30 | M10: Křižovatka :30,00
C11: Nájezd ke gazáži:25,00 | E11: 25 | M11: Nájezd ke gazáži:25,00
A12: 2 | B12: 566501111R00 | C12: Úprava krytu kamenivem drceným do 0,10 m3/m2 | D12: m2 | E12: 230 | G12: =E12*F12 -> 0 | H12: 0.17726 | I12: =E12*H12 -> 40.7698 | J12: 0 | K12: =E12*J12 -> 0 | O12: 2 | AA12: 1 | AB12: 1 | AC12: 1 | AZ12: 1 | BA12: =IF(AZ12=1,G12,0) -> 0 | BB12: =IF(AZ12=2,G12,0) -> 0 | BC12: =IF(AZ12=3,G12,0) -> 0 | BD12: =IF(AZ12=4,G12,0) -> 0 | BE12: =IF(AZ12=5,G12,0) -> 0 | CA12: 1 | CB12: 1
C13: Komunikace:175,00 | E13: 175 | M13: Komunikace:175,00
C14: Křižovatka :30,00 | E14: 30 | M14: Křižovatka :30,00
C15: Nájezd ke gazáži:25,00 | E15: 25 | M15: Nájezd ke gazáži:25,00
A16: 3 | B16: 569831111R00 | C16: Zpevnění krajnic štěrkodrtí tloušťky 10 cm | D16: m2 | E16: 34 | G16: =E16*F16 -> 0 | H16: 0.18776 | I16: =E16*H16 -> 6.38384 | J16: 0 | K16: =E16*J16 -> 0 | O16: 2 | AA16: 1 | AB16: 1 | AC16: 1 | AZ16: 1 | BA16: =IF(AZ16=1,G16,0) -> 0 | BB16: =IF(AZ16=2,G16,0) -> 0 | BC16: =IF(AZ16=3,G16,0) -> 0 | BD16: =IF(AZ16=4,G16,0) -> 0 | BE16: =IF(AZ16=5,G16,0) -> 0 | CA16: 1 | CB16: 1
C17: Komunikace a křižovatka:136,00*0,25 | E17: 34 | M17: Komunikace a křižovatka:136,00*0,25
A18: 4 | B18: 573111111R00 | C18: Postřik živičný infiltr.+ posyp, asfalt. 0,60kg/m2 | D18: m2 | E18: 230 | G18: =E18*F18 -> 0 | H18: 0.00561 | I18: =E18*H18 -> 1.2903 | J18: 0 | K18: =E18*J18 -> 0 | O18: 2 | AA18: 1 | AB18: 1 | AC18: 1 | AZ18: 1 | BA18: =IF(AZ18=1,G18,0) -> 0 | BB18: =IF(AZ18=2,G18,0) -> 0 | BC18: =IF(AZ18=3,G18,0) -> 0 | BD18: =IF(AZ18=4,G18,0) -> 0 | BE18: =IF(AZ18=5,G18,0) -> 0 | CA18: 1 | CB18: 1
C19: Komunikace:175,00 | E19: 175 | M19: Komunikace:175,00
C20: Křižovatka :30,00 | E20: 30 | M20: Křižovatka :30,00
C21: Nájezd ke gazáži:25,00 | E21: 25 | M21: Nájezd ke gazáži:25,00
A22: 5 | B22: 573231126R00 | C22: Postřik spojovací z KAE množství zbytkového asfaltu 0,6 kg/m2 | D22: m2 | E22: 230 | G22: =E22*F22 -> 0 | H22: 0.0005 | I22: =E22*H22 -> 0.115 | J22: 0 | K22: =E22*J22 -> 0 | O22: 2 | AA22: 1 | AB22: 1 | AC22: 1 | AZ22: 1 | BA22: =IF(AZ22=1,G22,0) -> 0 | BB22: =IF(AZ22=2,G22,0) -> 0 | BC22: =IF(AZ22=3,G22,0) -> 0 | BD22: =IF(AZ22=4,G22,0) -> 0 | BE22: =IF(AZ22=5,G22,0) -> 0 | CA22: 1 | CB22: 1
C23: Komunikace:175,00 | E23: 175 | M23: Komunikace:175,00
C24: Křižovatka :30,00 | E24: 30 | M24: Křižovatka :30,00
C25: Nájezd ke gazáži:25,00 | E25: 25 | M25: Nájezd ke gazáži:25,00
A26: 6 | B26: 577131211RT2 | C26: Beton asfalt. ACO 8,nebo ACO 11, do 3 m, tl. 4 cm plochy 201-1000 m2 | D26: m2 | E26: 230 | G26: =E26*F26 -> 0 | H26: 0.10141 | I26: =E26*H26 -> 23.3243 | J26: 0 | K26: =E26*J26 -> 0 | O26: 2 | AA26: 1 | AB26: 1 | AC26: 1 | AZ26: 1 | BA26: =IF(AZ26=1,G26,0) -> 0 | BB26: =IF(AZ26=2,G26,0) -> 0 | BC26: =IF(AZ26=3,G26,0) -> 0 | BD26: =IF(AZ26=4,G26,0) -> 0 | BE26: =IF(AZ26=5,G26,0) -> 0 | CA26: 1 | CB26: 1
C27: Komunikace:175,00 | E27: 175 | M27: Komunikace:175,00
C28: Křižovatka :30,00 | E28: 30 | M28: Křižovatka :30,00
C29: Nájezd ke gazáži:25,00 | E29: 25 | M29: Nájezd ke gazáži:25,00
B30: Celkem za | C30: 5 Komunikace | G30: =SUM(G7:G29) -> 0 | I30: =SUM(I7:I29) -> 102.21564 | K30: =SUM(K7:K29) -> 0 | O30: 4 | BA30: =SUM(BA7:BA29) -> 0 | BB30: =SUM(BB7:BB29) -> 0 | BC30: =SUM(BC7:BC29) -> 0 | BD30: =SUM(BD7:BD29) -> 0 | BE30: =SUM(BE7:BE29) -> 0
A31: Díl: | B31: 8 | C31: Trubní vedení | O31: 1
A32: 7 | B32: 899431111R00 | C32: Výšková úprava do 20 cm, zvýšení krytu šoupěte | D32: kus | E32: 2 | G32: =E32*F32 -> 0 | H32: 0.3159 | I32: =E32*H32 -> 0.6318 | J32: 0 | K32: =E32*J32 -> 0 | O32: 2 | AA32: 1 | AB32: 1 | AC32: 1 | AZ32: 1 | BA32: =IF(AZ32=1,G32,0) -> 0 | BB32: =IF(AZ32=2,G32,0) -> 0 | BC32: =IF(AZ32=3,G32,0) -> 0 | BD32: =IF(AZ32=4,G32,0) -> 0 | BE32: =IF(AZ32=5,G32,0) -> 0 | CA32: 1 | CB32: 1
B33: Celkem za | C33: 8 Trubní vedení | G33: =SUM(G31:G32) -> 0 | I33: =SUM(I31:I32) -> 0.6318 | K33: =SUM(K31:K32) -> 0 | O33: 4 | BA33: =SUM(BA31:BA32) -> 0 | BB33: =SUM(BB31:BB32) -> 0 | BC33: =SUM(BC31:BC32) -> 0 | BD33: =SUM(BD31:BD32) -> 0 | BE33: =SUM(BE31:BE32) -> 0
A34: Díl: | B34: 91 | C34: Doplňující práce na komunikaci | O34: 1
A35: 8 | B35: 919731122R00 | C35: Zarovnání styčné plochy živičné tl. do 10 cm | D35: m | E35: 3.5 | G35: =E35*F35 -> 0 | H35: 0 | I35: =E35*H35 -> 0 | J35: 0 | K35: =E35*J35 -> 0 | O35: 2 | AA35: 1 | AB35: 1 | AC35: 1 | AZ35: 1 | BA35: =IF(AZ35=1,G35,0) -> 0 | BB35: =IF(AZ35=2,G35,0) -> 0 | BC35: =IF(AZ35=3,G35,0) -> 0 | BD35: =IF(AZ35=4,G35,0) -> 0 | BE35: =IF(AZ35=5,G35,0) -> 0 | CA35: 1 | CB35: 1
A36: 9 | B36: 919735112R00 | C36: Řezání stávajícího živičného krytu tl. 5 - 10 cm | D36: m | E36: 3.5 | G36: =E36*F36 -> 0 | H36: 0 | I36: =E36*H36 -> 0 | J36: 0 | K36: =E36*J36 -> 0 | O36: 2 | AA36: 1 | AB36: 1 | AC36: 1 | AZ36: 1 | BA36: =IF(AZ36=1,G36,0) -> 0 | BB36: =IF(AZ36=2,G36,0) -> 0 | BC36: =IF(AZ36=3,G36,0) -> 0 | BD36: =IF(AZ36=4,G36,0) -> 0 | BE36: =IF(AZ36=5,G36,0) -> 0 | CA36: 1 | CB36: 1
B37: Celkem za | C37: 91 Doplňující práce na komunikaci | G37: =SUM(G34:G36) -> 0 | I37: =SUM(I34:I36) -> 0 | K37: =SUM(K34:K36) -> 0 | O37: 4 | BA37: =SUM(BA34:BA36) -> 0 | BB37: =SUM(BB34:BB36) -> 0 | BC37: =SUM(BC34:BC36) -> 0 | BD37: =SUM(BD34:BD36) -> 0 | BE37: =SUM(BE34:BE36) -> 0
A38: Díl: | B38: 93 | C38: Dokončovací práce inženýrských staveb | O38: 1
A39: 10 | B39: 938909111R00 | C39: Odstranění nánosu s povrchu podkladu štěrkového | D39: m2 | E39: 230 | G39: =E39*F39 -> 0 | H39: 0 | I39: =E39*H39 -> 0 | J39: 0 | K39: =E39*J39 -> 0 | O39: 2 | AA39: 1 | AB39: 1 | AC39: 1 | AZ39: 1 | BA39: =IF(AZ39=1,G39,0) -> 0 | BB39: =IF(AZ39=2,G39,0) -> 0 | BC39: =IF(AZ39=3,G39,0) -> 0 | BD39: =IF(AZ39=4,G39,0) -> 0 | BE39: =IF(AZ39=5,G39,0) -> 0 | CA39: 1 | CB39: 1
C40: Komunikace:175,00 | E40: 175 | M40: Komunikace:175,00
C41: Křižovatka :30,00 | E41: 30 | M41: Křižovatka :30,00
C42: Nájezd ke gazáži:25,00 | E42: 25 | M42: Nájezd ke gazáži:25,00
A43: 11 | B43: 938909611R00 | C43: Odstranění nánosu na krajnicích tl. do 10 cm | D43: m2 | E43: 34 | G43: =E43*F43 -> 0 | H43: 0 | I43: =E43*H43 -> 0 | J43: -0.126 | K43: =E43*J43 -> -4.284 | O43: 2 | AA43: 1 | AB43: 1 | AC43: 1 | AZ43: 1 | BA43: =IF(AZ43=1,G43,0) -> 0 | BB43: =IF(AZ43=2,G43,0) -> 0 | BC43: =IF(AZ43=3,G43,0) -> 0 | BD43: =IF(AZ43=4,G43,0) -> 0 | BE43: =IF(AZ43=5,G43,0) -> 0 | CA43: 1 | CB43: 1
C44: Komunikace a křižovatka:136,00*0,25 | E44: 34 | M44: Komunikace a křižovatka:136,00*0,25
B45: Celkem za | C45: 93 Dokončovací práce inženýrských staveb | G45: =SUM(G38:G44) -> 0 | I45: =SUM(I38:I44) -> 0 | K45: =SUM(K38:K44) -> -4.284 | O45: 4 | BA45: =SUM(BA38:BA44) -> 0 | BB45: =SUM(BB38:BB44) -> 0 | BC45: =SUM(BC38:BC44) -> 0 | BD45: =SUM(BD38:BD44) -> 0 | BE45: =SUM(BE38:BE44) -> 0
A46: Díl: | B46: 99 | C46: Staveništní přesun hmot | O46: 1
A47: 12 | B47: 998225111R00 | C47: Přesun hmot, pozemní komunikace, kryt živičný | D47: t | E47: 102.84744 | G47: =E47*F47 -> 0 | H47: 0 | I47: =E47*H47 -> 0 | K47: =E47*J47 -> 0 | O47: 2 | AA47: 7 | AB47: 1 | AC47: 2 | AZ47: 1 | BA47: =IF(AZ47=1,G47,0) -> 0 | BB47: =IF(AZ47=2,G47,0) -> 0 | BC47: =IF(AZ47=3,G47,0) -> 0 | BD47: =IF(AZ47=4,G47,0) -> 0 | BE47: =IF(AZ47=5,G47,0) -> 0 | CA47: 7 | CB47: 1
B48: Celkem za | C48: 99 Staveništní přesun hmot | G48: =SUM(G46:G47) -> 0 | I48: =SUM(I46:I47) -> 0 | K48: =SUM(K46:K47) -> 0 | O48: 4 | BA48: =SUM(BA46:BA47) -> 0 | BB48: =SUM(BB46:BB47) -> 0 | BC48: =SUM(BC46:BC47) -> 0 | BD48: =SUM(BD46:BD47) -> 0 | BE48: =SUM(BE46:BE47) -> 0

Sheet 105 3326105.1 KL
A1: POLOŽKOVÝ ROZPOČET
A2: Rozpočet | C2: 3326/105.1 | D2: Oprava MK "Mašov-Mašovská u hřbitova"-úsek k ČOV | F2: JKSO | G2: 822.29
A4: Objekt | F4: SKP
A5: 105 | C5: Oprava MK "Mašov - Mašovská u hřbitova" | F5: Měrná jednotka | G5: m2
A6: Stavba | F6: Počet jednotek | G6: 0
A7: 3326 | C7: Oprava místních komunikací Turnov | F7: Náklady na m.j. | G7: =IF(G6=0,,ROUND((F30+F32)/G6,1)) -> 0
A8: Projektant | F8: Typ rozpočtu
A9: Zpracovatel projektu
A10: Objednatel | C10: Město TURNOV
A11: Dodavatel | C11: . | F11: Zakázkové číslo
A12: Rozpočtoval | F12: Počet listů
A13: ROZPOČTOVÉ NÁKLADY
A14: Základní rozpočtové náklady | D14: Ostatní rozpočtové náklady
B15: HSV celkem | C15: ='105 3326105.1 Rek'!E11 -> 0 | D15: ='105 3326105.1 Rek'!A16 -> Zařízení staveniště | G15: ='105 3326105.1 Rek'!I16 -> 0
A16: Z | B16: PSV celkem | C16: ='105 3326105.1 Rek'!F11 -> 0 | D16: ='105 3326105.1 Rek'!A17 -> Kompletační činnost (IČD) | G16: ='105 3326105.1 Rek'!I17 -> 0
A17: R | B17: M práce celkem | C17: ='105 3326105.1 Rek'!H11 -> 0 | D17: ='105 3326105.1 Rek'!A18 -> Vytýčení stavby a podz. inženýrských sítí | G17: ='105 3326105.1 Rek'!I18 -> 0
A18: N | B18: M dodávky celkem | C18: ='105 3326105.1 Rek'!G11 -> 0 | D18: ='105 3326105.1 Rek'!A19 -> DIO | G18: ='105 3326105.1 Rek'!I19 -> 0
A19: ZRN celkem | C19: =SUM(C15:C18) -> 0
A21: HZS | C21: ='105 3326105.1 Rek'!I11 -> 0
A22: ZRN+HZS | C22: =C19+C21 -> 0
A23: ZRN+ost.náklady+HZS | C23: =C22+G23 -> 0 | D23: Ostatní náklady celkem | G23: ='105 3326105.1 Rek'!H20 -> 0
A24: Vypracoval | D24: Za zhotovitele | F24: Za objednatele
A25: Jméno : | D25: Jméno : | F25: Jméno :
A26: Datum : | D26: Datum : | F26: Datum :
A28: Podpis : | D28: Podpis: | F28: Podpis:
A30: Základ pro DPH | C30: 21 | D30: % | F30: =C23-F32 -> 0
A31: DPH | C31: =C30 -> 21 | D31: % | F31: =ROUND(PRODUCT(F30,C31/100),0) -> 0
A32: Základ pro DPH | C32: 0 | D32: % | F32: 0
A33: DPH | C33: =C32 -> 0 | D33: % | F33: =ROUND(PRODUCT(F32,C33/100),0) -> 0
A34: CENA ZA OBJEKT CELKEM | F34: =ROUND(SUM(F30:F33),0) -> 0
A36: Poznámka :

Sheet 105 3326105.1 Rek
A1: Stavba : | C1: 3326 Oprava místních komunikací Turnov | G1: Rozpočet : | H1: 3326/105.1
A2: Objekt : | C2: 105 Oprava MK "Mašov - Mašovská u hřbitova" | G2: Oprava MK "Mašov-Mašovská u hřbitova"-úsek k ČOV
A4: REKAPITULACE STAVEBNÍCH DÍLŮ
B6: Stavební díl | E6: HSV | F6: PSV | G6: Dodávka | H6: Montáž | I6: HZS
A7: ='105 3326105.1 Pol'!B7 -> 5 | B7: ='105 3326105.1 Pol'!C7 -> Komunikace | E7: ='105 3326105.1 Pol'!BA24 -> 0 | F7: ='105 3326105.1 Pol'!BB24 -> 0 | G7: ='105 3326105.1 Pol'!BC24 -> 0 | H7: ='105 3326105.1 Pol'!BD24 -> 0 | I7: ='105 3326105.1 Pol'!BE24 -> 0
A8: ='105 3326105.1 Pol'!B25 -> 91 | B8: ='105 3326105.1 Pol'!C25 -> Doplňující práce na komunikaci | E8: ='105 3326105.1 Pol'!BA28 -> 0 | F8: ='105 3326105.1 Pol'!BB28 -> 0 | G8: ='105 3326105.1 Pol'!BC28 -> 0 | H8: ='105 3326105.1 Pol'!BD28 -> 0 | I8: ='105 3326105.1 Pol'!BE28 -> 0
A9: ='105 3326105.1 Pol'!B29 -> 93 | B9: ='105 3326105.1 Pol'!C29 -> Dokončovací práce inženýrských staveb | E9: ='105 3326105.1 Pol'!BA36 -> 0 | F9: ='105 3326105.1 Pol'!BB36 -> 0 | G9: ='105 3326105.1 Pol'!BC36 -> 0 | H9: ='105 3326105.1 Pol'!BD36 -> 0 | I9: ='105 3326105.1 Pol'!BE36 -> 0
A10: ='105 3326105.1 Pol'!B37 -> 99 | B10: ='105 3326105.1 Pol'!C37 -> Staveništní přesun hmot | E10: ='105 3326105.1 Pol'!BA39 -> 0 | F10: ='105 3326105.1 Pol'!BB39 -> 0 | G10: ='105 3326105.1 Pol'!BC39 -> 0 | H10: ='105 3326105.1 Pol'!BD39 -> 0 | I10: ='105 3326105.1 Pol'!BE39 -> 0
B11: CELKEM OBJEKT | E11: =SUM(E7:E10) -> 0 | F11: =SUM(F7:F10) -> 0 | G11: =SUM(G7:G10) -> 0 | H11: =SUM(H7:H10) -> 0 | I11: =SUM(I7:I10) -> 0
A13: VEDLEJŠÍ ROZPOČTOVÉ NÁKLADY
A15: Název VRN | E15: Kč | I15: Kč
A16: Zařízení staveniště | E16: 0 | I16: =E16+F16*G16/100 -> 0 | BA16: 2
A17: Kompletační činnost (IČD) | E17: 0 | I17: =E17+F17*G17/100 -> 0 | BA17: 2
A18: Vytýčení stavby a podz. inženýrských sítí | E18: 0 | I18: =E18+F18*G18/100 -> 0 | BA18: 0
A19: DIO | E19: 0 | I19: =E19+F19*G19/100 -> 0 | BA19: 0
B20: CELKEM VRN | H20: =SUM(I16:I19) -> 0

Sheet 105 3326105.1 Pol
A1: Položkový rozpočet
A3: Stavba : | C3: 3326 Oprava místních komunikací Turnov | E3: Rozpočet: | F3: ='105 3326105.1 Rek'!H1 -> 3326/105.1
A4: Objekt : | C4: 105 Oprava MK "Mašov - Mašovská u hřbitova" | E4: ='105 3326105.1 Rek'!G2 -> Oprava MK "Mašov-Mašovská u hřbitova"-úsek k ČOV
A6: P.č. | B6: Číslo položky | C6: Název položky | D6: MJ | E6: množství | F6: cena / MJ | G6: celkem (Kč) | H6: Jednotková hmotnost | I6: Celková hmotnost | J6: Jednotková dem.hmot. | K6: Celková dem.hmot.
A7: Díl: | B7: 5 | C7: Komunikace | O7: 1
A8: 1 | B8: 565131211RT3 | C8: Podklad z obal kamen. ACP 16+, š.nad 3 m, tl. 5 cm plochy 101-200 m2 | D8: m2 | E8: 35 | G8: =E8*F8 -> 0 | H8: 0.13188 | I8: =E8*H8 -> 4.6158 | J8: 0 | K8: =E8*J8 -> 0 | O8: 2 | AA8: 1 | AB8: 1 | AC8: 1 | AZ8: 1 | BA8: =IF(AZ8=1,G8,0) -> 0 | BB8: =IF(AZ8=2,G8,0) -> 0 | BC8: =IF(AZ8=3,G8,0) -> 0 | BD8: =IF(AZ8=4,G8,0) -> 0 | BE8: =IF(AZ8=5,G8,0) -> 0 | CA8: 1 | CB8: 1
C9: Odstavná plocha u hřbitova:35,00 | E9: 35 | M9: Odstavná plocha u hřbitova:35,00
A10: 2 | B10: 566501111R00 | C10: Úprava krytu kamenivem drceným do 0,10 m3/m2 | D10: m2 | E10: 35 | G10: =E10*F10 -> 0 | H10: 0.17726 | I10: =E10*H10 -> 6.2041 | J10: 0 | K10: =E10*J10 -> 0 | O10: 2 | AA10: 1 | AB10: 1 | AC10: 1 | AZ10: 1 | BA10: =IF(AZ10=1,G10,0) -> 0 | BB10: =IF(AZ10=2,G10,0) -> 0 | BC10: =IF(AZ10=3,G10,0) -> 0 | BD10: =IF(AZ10=4,G10,0) -> 0 | BE10: =IF(AZ10=5,G10,0) -> 0 | CA10: 1 | CB10: 1
C11: Odstavná plocha u hřbitova:35,00 | E11: 35 | M11: Odstavná plocha u hřbitova:35,00
A12: 3 | B12: 569831111R00 | C12: Zpevnění krajnic štěrkodrtí tloušťky 10 cm | D12: m2 | E12: 120 | G12: =E12*F12 -> 0 | H12: 0.18776 | I12: =E12*H12 -> 22.5312 | J12: 0 | K12: =E12*J12 -> 0 | O12: 2 | AA12: 1 | AB12: 1 | AC12: 1 | AZ12: 1 | BA12: =IF(AZ12=1,G12,0) -> 0 | BB12: =IF(AZ12=2,G12,0) -> 0 | BC12: =IF(AZ12=3,G12,0) -> 0 | BD12: =IF(AZ12=4,G12,0) -> 0 | BE12: =IF(AZ12=5,G12,0) -> 0 | CA12: 1 | CB12: 1
C13: Krajnice:240,00*0,25*2 | E13: 120 | M13: Krajnice:240,00*0,25*2
A14: 4 | B14: 572713112R00 | C14: Vyrovnání povrchu krytů kamen. obaleným asfaltem | D14: t | E14: 101 | G14: =E14*F14 -> 0 | H14: 1 | I14: =E14*H14 -> 101 | J14: 0 | K14: =E14*J14 -> 0 | O14: 2 | AA14: 1 | AB14: 1 | AC14: 1 | AZ14: 1 | BA14: =IF(AZ14=1,G14,0) -> 0 | BB14: =IF(AZ14=2,G14,0) -> 0 | BC14: =IF(AZ14=3,G14,0) -> 0 | BD14: =IF(AZ14=4,G14,0) -> 0 | BE14: =IF(AZ14=5,G14,0) -> 0 | CA14: 1 | CB14: 1
C15: Komunikace:1010,00*0,08/2*2,5 | E15: 101 | M15: Komunikace:1010,00*0,08/2*2,5
A16: 5 | B16: 573111111R00 | C16: Postřik živičný infiltr.+ posyp, asfalt. 0,60kg/m2 | D16: m2 | E16: 35 | G16: =E16*F16 -> 0 | H16: 0.00561 | I16: =E16*H16 -> 0.19635 | J16: 0 | K16: =E16*J16 -> 0 | O16: 2 | AA16: 1 | AB16: 1 | AC16: 1 | AZ16: 1 | BA16: =IF(AZ16=1,G16,0) -> 0 | BB16: =IF(AZ16=2,G16,0) -> 0 | BC16: =IF(AZ16=3,G16,0) -> 0 | BD16: =IF(AZ16=4,G16,0) -> 0 | BE16: =IF(AZ16=5,G16,0) -> 0 | CA16: 1 | CB16: 1
C17: Odstavná plocha u hřbitova:35,00 | E17: 35 | M17: Odstavná plocha u hřbitova:35,00
A18: 6 | B18: 573231126R00 | C18: Postřik spojovací z KAE množství zbytkového asfaltu 0,6 kg/m2 | D18: m2 | E18: 1045 | G18: =E18*F18 -> 0 | H18: 0.0005 | I18: =E18*H18 -> 0.5225 | J18: 0 | K18: =E18*J18 -> 0 | O18: 2 | AA18: 1 | AB18: 1 | AC18: 1 | AZ18: 1 | BA18: =IF(AZ18=1,G18,0) -> 0 | BB18: =IF(AZ18=2,G18,0) -> 0 | BC18: =IF(AZ18=3,G18,0) -> 0 | BD18: =IF(AZ18=4,G18,0) -> 0 | BE18: =IF(AZ18=5,G18,0) -> 0 | CA18: 1 | CB18: 1
C19: Komunikace:1010,00 | E19: 1010 | M19: Komunikace:1010,00
C20: Odstavná plocha u hřbitova:35,00 | E20: 35 | M20: Odstavná plocha u hřbitova:35,00
A21: 7 | B21: 577142112RT2 | C21: Beton asfaltový ACO 11+, ACO 16+, nad 3 m, tl.5 cm plochy 201-1000 m2 | D21: m2 | E21: 1045 | G21: =E21*F21 -> 0 | H21: 0.12966 | I21: =E21*H21 -> 135.4947 | J21: 0 | K21: =E21*J21 -> 0 | O21: 2 | AA21: 1 | AB21: 1 | AC21: 1 | AZ21: 1 | BA21: =IF(AZ21=1,G21,0) -> 0 | BB21: =IF(AZ21=2,G21,0) -> 0 | BC21: =IF(AZ21=3,G21,0) -> 0 | BD21: =IF(AZ21=4,G21,0) -> 0 | BE21: =IF(AZ21=5,G21,0) -> 0 | CA21: 1 | CB21: 1
C22: Komunikace:1010,00 | E22: 1010 | M22: Komunikace:1010,00
C23: Odstavná plocha u hřbitova:35,00 | E23: 35 | M23: Odstavná plocha u hřbitova:35,00
B24: Celkem za | C24: 5 Komunikace | G24: =SUM(G7:G23) -> 0 | I24: =SUM(I7:I23) -> 270.56465 | K24: =SUM(K7:K23) -> 0 | O24: 4 | BA24: =SUM(BA7:BA23) -> 0 | BB24: =SUM(BB7:BB23) -> 0 | BC24: =SUM(BC7:BC23) -> 0 | BD24: =SUM(BD7:BD23) -> 0 | BE24: =SUM(BE7:BE23) -> 0
A25: Díl: | B25: 91 | C25: Doplňující práce na komunikaci | O25: 1
A26: 8 | B26: 919731122R00 | C26: Zarovnání styčné plochy živičné tl. do 10 cm | D26: m | E26: 10 | G26: =E26*F26 -> 0 | H26: 0 | I26: =E26*H26 -> 0 | J26: 0 | K26: =E26*J26 -> 0 | O26: 2 | AA26: 1 | AB26: 1 | AC26: 1 | AZ26: 1 | BA26: =IF(AZ26=1,G26,0) -> 0 | BB26: =IF(AZ26=2,G26,0) -> 0 | BC26: =IF(AZ26=3,G26,0) -> 0 | BD26: =IF(AZ26=4,G26,0) -> 0 | BE26: =IF(AZ26=5,G26,0) -> 0 | CA26: 1 | CB26: 1
A27: 9 | B27: 919735112R00 | C27: Řezání stávajícího živičného krytu tl. 5 - 10 cm | D27: m | E27: 10 | G27: =E27*F27 -> 0 | H27: 0 | I27: =E27*H27 -> 0 | J27: 0 | K27: =E27*J27 -> 0 | O27: 2 | AA27: 1 | AB27: 1 | AC27: 1 | AZ27: 1 | BA27: =IF(AZ27=1,G27,0) -> 0 | BB27: =IF(AZ27=2,G27,0) -> 0 | BC27: =IF(AZ27=3,G27,0) -> 0 | BD27: =IF(AZ27=4,G27,0) -> 0 | BE27: =IF(AZ27=5,G27,0) -> 0 | CA27: 1 | CB27: 1
B28: Celkem za | C28: 91 Doplňující práce na komunikaci | G28: =SUM(G25:G27) -> 0 | I28: =SUM(I25:I27) -> 0 | K28: =SUM(K25:K27) -> 0 | O28: 4 | BA28: =SUM(BA25:BA27) -> 0 | BB28: =SUM(BB25:BB27) -> 0 | BC28: =SUM(BC25:BC27) -> 0 | BD28: =SUM(BD25:BD27) -> 0 | BE28: =SUM(BE25:BE27) -> 0
A29: Díl: | B29: 93 | C29: Dokončovací práce inženýrských staveb | O29: 1
A30: 10 | B30: 938909111R00 | C30: Odstranění nánosu s povrchu podkladu štěrkového | D30: m2 | E30: 35 | G30: =E30*F30 -> 0 | H30: 0 | I30: =E30*H30 -> 0 | J30: 0 | K30: =E30*J30 -> 0 | O30: 2 | AA30: 1 | AB30: 1 | AC30: 1 | AZ30: 1 | BA30: =IF(AZ30=1,G30,0) -> 0 | BB30: =IF(AZ30=2,G30,0) -> 0 | BC30: =IF(AZ30=3,G30,0) -> 0 | BD30: =IF(AZ30=4,G30,0) -> 0 | BE30: =IF(AZ30=5,G30,0) -> 0 | CA30: 1 | CB30: 1
C31: Odstavná plocha u hřbitova:35,00 | E31: 35 | M31: Odstavná plocha u hřbitova:35,00
A32: 11 | B32: 938909311R00 | C32: Odstranění nánosu z povrchu živičného nebo beton. | D32: m2 | E32: 1010 | G32: =E32*F32 -> 0 | H32: 0 | I32: =E32*H32 -> 0 | J32: 0 | K32: =E32*J32 -> 0 | O32: 2 | AA32: 1 | AB32: 1 | AC32: 1 | AZ32: 1 | BA32: =IF(AZ32=1,G32,0) -> 0 | BB32: =IF(AZ32=2,G32,0) -> 0 | BC32: =IF(AZ32=3,G32,0) -> 0 | BD32: =IF(AZ32=4,G32,0) -> 0 | BE32: =IF(AZ32=5,G32,0) -> 0 | CA32: 1 | CB32: 1
C33: Komunikace:1010,00 | E33: 1010 | M33: Komunikace:1010,00
A34: 12 | B34: 938909611R00 | C34: Odstranění nánosu na krajnicích tl. do 10 cm | D34: m2 | E34: 120 | G34: =E34*F34 -> 0 | H34: 0 | I34: =E34*H34 -> 0 | J34: -0.126 | K34: =E34*J34 -> -15.12 | O34: 2 | AA34: 1 | AB34: 1 | AC34: 1 | AZ34: 1 | BA34: =IF(AZ34=1,G34,0) -> 0 | BB34: =IF(AZ34=2,G34,0) -> 0 | BC34: =IF(AZ34=3,G34,0) -> 0 | BD34: =IF(AZ34=4,G34,0) -> 0 | BE34: =IF(AZ34=5,G34,0) -> 0 | CA34: 1 | CB34: 1
C35: Krajnice:240,00*0,25*2 | E35: 120 | M35: Krajnice:240,00*0,25*2
B36: Celkem za | C36: 93 Dokončovací práce inženýrských staveb | G36: =SUM(G29:G35) -> 0 | I36: =SUM(I29:I35) -> 0 | K36: =SUM(K29:K35) -> -15.12 | O36: 4 | BA36: =SUM(BA29:BA35) -> 0 | BB36: =SUM(BB29:BB35) -> 0 | BC36: =SUM(BC29:BC35) -> 0 | BD36: =SUM(BD29:BD35) -> 0 | BE36: =SUM(BE29:BE35) -> 0
A37: Díl: | B37: 99 | C37: Staveništní přesun hmot | O37: 1
A38: 13 | B38: 998225111R00 | C38: Přesun hmot, pozemní komunikace, kryt živičný | D38: t | E38: 270.56465 | G38: =E38*F38 -> 0 | H38: 0 | I38: =E38*H38 -> 0 | K38: =E38*J38 -> 0 | O38: 2 | AA38: 7 | AB38: 1 | AC38: 2 | AZ38: 1 | BA38: =IF(AZ38=1,G38,0) -> 0 | BB38: =IF(AZ38=2,G38,0) -> 0 | BC38: =IF(AZ38=3,G38,0) -> 0 | BD38: =IF(AZ38=4,G38,0) -> 0 | BE38: =IF(AZ38=5,G38,0) -> 0 | CA38: 7 | CB38: 1
B39: Celkem za | C39: 99 Staveništní přesun hmot | G39: =SUM(G37:G38) -> 0 | I39: =SUM(I37:I38) -> 0 | K39: =SUM(K37:K38) -> 0 | O39: 4 | BA39: =SUM(BA37:BA38) -> 0 | BB39: =SUM(BB37:BB38) -> 0 | BC39: =SUM(BC37:BC38) -> 0 | BD39: =SUM(BD37:BD38) -> 0 | BE39: =SUM(BE37:BE38) -> 0

Sheet 105 3326105.2 KL
A1: POLOŽKOVÝ ROZPOČET
A2: Rozpočet | C2: 3326/105.2 | D2: Oprava MK "Mašov-Mašovská u hřbitova"-křiž. u ČOV | F2: JKSO | G2: 822.29
A4: Objekt | F4: SKP
A5: 105 | C5: Oprava MK "Mašov - Mašovská u hřbitova" | F5: Měrná jednotka | G5: m2
A6: Stavba | F6: Počet jednotek | G6: 0
A7: 3326 | C7: Oprava místních komunikací Turnov | F7: Náklady na m.j. | G7: =IF(G6=0,,ROUND((F30+F32)/G6,1)) -> 0
A8: Projektant | F8: Typ rozpočtu
A9: Zpracovatel projektu
A10: Objednatel | C10: Město TURNOV
A11: Dodavatel | C11: . | F11: Zakázkové číslo
A12: Rozpočtoval | F12: Počet listů
A13: ROZPOČTOVÉ NÁKLADY
A14: Základní rozpočtové náklady | D14: Ostatní rozpočtové náklady
B15: HSV celkem | C15: ='105 3326105.2 Rek'!E11 -> 0 | D15: ='105 3326105.2 Rek'!A16 -> Zařízení staveniště | G15: ='105 3326105.2 Rek'!I16 -> 0
A16: Z | B16: PSV celkem | C16: ='105 3326105.2 Rek'!F11 -> 0 | D16: ='105 3326105.2 Rek'!A17 -> Kompletační činnost (IČD) | G16: ='105 3326105.2 Rek'!I17 -> 0
A17: R | B17: M práce celkem | C17: ='105 3326105.2 Rek'!H11 -> 0 | D17: ='105 3326105.2 Rek'!A18 -> Vytýčení stavby a podz. inženýrských sítí | G17: ='105 3326105.2 Rek'!I18 -> 0
A18: N | B18: M dodávky celkem | C18: ='105 3326105.2 Rek'!G11 -> 0 | D18: ='105 3326105.2 Rek'!A19 -> DIO | G18: ='105 3326105.2 Rek'!I19 -> 0
A19: ZRN celkem | C19: =SUM(C15:C18) -> 0
A21: HZS | C21: ='105 3326105.2 Rek'!I11 -> 0
A22: ZRN+HZS | C22: =C19+C21 -> 0
A23: ZRN+ost.náklady+HZS | C23: =C22+G23 -> 0 | D23: Ostatní náklady celkem | G23: ='105 3326105.2 Rek'!H20 -> 0
A24: Vypracoval | D24: Za zhotovitele | F24: Za objednatele
A25: Jméno : | D25: Jméno : | F25: Jméno :
A26: Datum : | D26: Datum : | F26: Datum :
A28: Podpis : | D28: Podpis: | F28: Podpis:
A30: Základ pro DPH | C30: 21 | D30: % | F30: =C23-F32 -> 0
A31: DPH | C31: =C30 -> 21 | D31: % | F31: =ROUND(PRODUCT(F30,C31/100),0) -> 0
A32: Základ pro DPH | C32: 0 | D32: % | F32: 0
A33: DPH | C33: =C32 -> 0 | D33: % | F33: =ROUND(PRODUCT(F32,C33/100),0) -> 0
A34: CENA ZA OBJEKT CELKEM | F34: =ROUND(SUM(F30:F33),0) -> 0
A36: Poznámka :

Sheet 105 3326105.2 Rek
A1: Stavba : | C1: 3326 Oprava místních komunikací Turnov | G1: Rozpočet : | H1: 3326/105.2
A2: Objekt : | C2: 105 Oprava MK "Mašov - Mašovská u hřbitova" | G2: Oprava MK "Mašov-Mašovská u hřbitova"-křiž. u ČOV
A4: REKAPITULACE STAVEBNÍCH DÍLŮ
B6: Stavební díl | E6: HSV | F6: PSV | G6: Dodávka | H6: Montáž | I6: HZS
A7: ='105 3326105.2 Pol'!B7 -> 5 | B7: ='105 3326105.2 Pol'!C7 -> Komunikace | E7: ='105 3326105.2 Pol'!BA16 -> 0 | F7: ='105 3326105.2 Pol'!BB16 -> 0 | G7: ='105 3326105.2 Pol'!BC16 -> 0 | H7: ='105 3326105.2 Pol'!BD16 -> 0 | I7: ='105 3326105.2 Pol'!BE16 -> 0
A8: ='105 3326105.2 Pol'!B17 -> 8 | B8: ='105 3326105.2 Pol'!C17 -> Trubní vedení | E8: ='105 3326105.2 Pol'!BA19 -> 0 | F8: ='105 3326105.2 Pol'!BB19 -> 0 | G8: ='105 3326105.2 Pol'!BC19 -> 0 | H8: ='105 3326105.2 Pol'!BD19 -> 0 | I8: ='105 3326105.2 Pol'!BE19 -> 0
A9: ='105 3326105.2 Pol'!B20 -> 93 | B9: ='105 3326105.2 Pol'!C20 -> Dokončovací práce inženýrských staveb | E9: ='105 3326105.2 Pol'!BA25 -> 0 | F9: ='105 3326105.2 Pol'!BB25 -> 0 | G9: ='105 3326105.2 Pol'!BC25 -> 0 | H9: ='105 3326105.2 Pol'!BD25 -> 0 | I9: ='105 3326105.2 Pol'!BE25 -> 0
A10: ='105 3326105.2 Pol'!B26 -> 99 | B10: ='105 3326105.2 Pol'!C26 -> Staveništní přesun hmot | E10: ='105 3326105.2 Pol'!BA28 -> 0 | F10: ='105 3326105.2 Pol'!BB28 -> 0 | G10: ='105 3326105.2 Pol'!BC28 -> 0 | H10: ='105 3326105.2 Pol'!BD28 -> 0 | I10: ='105 3326105.2 Pol'!BE28 -> 0
B11: CELKEM OBJEKT | E11: =SUM(E7:E10) -> 0 | F11: =SUM(F7:F10) -> 0 | G11: =SUM(G7:G10) -> 0 | H11: =SUM(H7:H10) -> 0 | I11: =SUM(I7:I10) -> 0
A13: VEDLEJŠÍ ROZPOČTOVÉ NÁKLADY
A15: Název VRN | E15: Kč | I15: Kč
A16: Zařízení staveniště | E16: 0 | I16: =E16+F16*G16/100 -> 0 | BA16: 2
A17: Kompletační činnost (IČD) | E17: 0 | I17: =E17+F17*G17/100 -> 0 | BA17: 2
A18: Vytýčení stavby a podz. inženýrských sítí | E18: 0 | I18: =E18+F18*G18/100 -> 0 | BA18: 0
A19: DIO | E19: 0 | I19: =E19+F19*G19/100 -> 0 | BA19: 0
B20: CELKEM VRN | H20: =SUM(I16:I19) -> 0

Sheet 105 3326105.2 Pol
A1: Položkový rozpočet
A3: Stavba : | C3: 3326 Oprava místních komunikací Turnov | E3: Rozpočet: | F3: ='105 3326105.2 Rek'!H1 -> 3326/105.2
A4: Objekt : | C4: 105 Oprava MK "Mašov - Mašovská u hřbitova" | E4: ='105 3326105.2 Rek'!G2 -> Oprava MK "Mašov-Mašovská u hřbitova"-křiž. u ČOV
A6: P.č. | B6: Číslo položky | C6: Název položky | D6: MJ | E6: množství | F6: cena / MJ | G6: celkem (Kč) | H6: Jednotková hmotnost | I6: Celková hmotnost | J6: Jednotková dem.hmot. | K6: Celková dem.hmot.
A7: Díl: | B7: 5 | C7: Komunikace | O7: 1
A8: 1 | B8: 569831111R00 | C8: Zpevnění krajnic štěrkodrtí tloušťky 10 cm | D8: m2 | E8: 13.75 | G8: =E8*F8 -> 0 | H8: 0.18776 | I8: =E8*H8 -> 2.5817 | J8: 0 | K8: =E8*J8 -> 0 | O8: 2 | AA8: 1 | AB8: 1 | AC8: 1 | AZ8: 1 | BA8: =IF(AZ8=1,G8,0) -> 0 | BB8: =IF(AZ8=2,G8,0) -> 0 | BC8: =IF(AZ8=3,G8,0) -> 0 | BD8: =IF(AZ8=4,G8,0) -> 0 | BE8: =IF(AZ8=5,G8,0) -> 0 | CA8: 1 | CB8: 1
C9: Křižovatka u ČOV:55,00*0,25 | E9: 13.75 | M9: Křižovatka u ČOV:55,00*0,25
A10: 2 | B10: 572713112R00 | C10: Vyrovnání povrchu krytů kamen. obaleným asfaltem | D10: t | E10: 20.5 | G10: =E10*F10 -> 0 | H10: 1 | I10: =E10*H10 -> 20.5 | J10: 0 | K10: =E10*J10 -> 0 | O10: 2 | AA10: 1 | AB10: 1 | AC10: 1 | AZ10: 1 | BA10: =IF(AZ10=1,G10,0) -> 0 | BB10: =IF(AZ10=2,G10,0) -> 0 | BC10: =IF(AZ10=3,G10,0) -> 0 | BD10: =IF(AZ10=4,G10,0) -> 0 | BE10: =IF(AZ10=5,G10,0) -> 0 | CA10: 1 | CB10: 1
C11: Křižovatka u ČOV:205,00*0,08/2*2,5 | E11: 20.5 | M11: Křižovatka u ČOV:205,00*0,08/2*2,5
A12: 3 | B12: 573231126R00 | C12: Postřik spojovací z KAE množství zbytkového asfaltu 0,6 kg/m2 | D12: m2 | E12: 205 | G12: =E12*F12 -> 0 | H12: 0.0005 | I12: =E12*H12 -> 0.1025 | J12: 0 | K12: =E12*J12 -> 0 | O12: 2 | AA12: 1 | AB12: 1 | AC12: 1 | AZ12: 1 | BA12: =IF(AZ12=1,G12,0) -> 0 | BB12: =IF(AZ12=2,G12,0) -> 0 | BC12: =IF(AZ12=3,G12,0) -> 0 | BD12: =IF(AZ12=4,G12,0) -> 0 | BE12: =IF(AZ12=5,G12,0) -> 0 | CA12: 1 | CB12: 1
C13: Křižovatka u ČOV:205,00 | E13: 205 | M13: Křižovatka u ČOV:205,00
A14: 4 | B14: 577142112RT2 | C14: Beton asfaltový ACO 11+, ACO 16+, nad 3 m, tl.5 cm plochy 201-1000 m2 | D14: m2 | E14: 205 | G14: =E14*F14 -> 0 | H14: 0.12966 | I14: =E14*H14 -> 26.5803 | J14: 0 | K14: =E14*J14 -> 0 | O14: 2 | AA14: 1 | AB14: 1 | AC14: 1 | AZ14: 1 | BA14: =IF(AZ14=1,G14,0) -> 0 | BB14: =IF(AZ14=2,G14,0) -> 0 | BC14: =IF(AZ14=3,G14,0) -> 0 | BD14: =IF(AZ14=4,G14,0) -> 0 | BE14: =IF(AZ14=5,G14,0) -> 0 | CA14: 1 | CB14: 1
C15: Křižovatka u ČOV:205,00 | E15: 205 | M15: Křižovatka u ČOV:205,00
B16: Celkem za | C16: 5 Komunikace | G16: =SUM(G7:G15) -> 0 | I16: =SUM(I7:I15) -> 49.7645 | K16: =SUM(K7:K15) -> 0 | O16: 4 | BA16: =SUM(BA7:BA15) -> 0 | BB16: =SUM(BB7:BB15) -> 0 | BC16: =SUM(BC7:BC15) -> 0 | BD16: =SUM(BD7:BD15) -> 0 | BE16: =SUM(BE7:BE15) -> 0
A17: Díl: | B17: 8 | C17: Trubní vedení | O17: 1
A18: 5 | B18: 899331111R00 | C18: Výšková úprava vstupu do 20 cm, zvýšení poklopu | D18: kus | E18: 2 | G18: =E18*F18 -> 0 | H18: 0.43094 | I18: =E18*H18 -> 0.86188 | J18: 0 | K18: =E18*J18 -> 0 | O18: 2 | AA18: 1 | AB18: 0 | AC18: 0 | AZ18: 1 | BA18: =IF(AZ18=1,G18,0) -> 0 | BB18: =IF(AZ18=2,G18,0) -> 0 | BC18: =IF(AZ18=3,G18,0) -> 0 | BD18: =IF(AZ18=4,G18,0) -> 0 | BE18: =IF(AZ18=5,G18,0) -> 0 | CA18: 1 | CB18: 0
B19: Celkem za | C19: 8 Trubní vedení | G19: =SUM(G17:G18) -> 0 | I19: =SUM(I17:I18) -> 0.86188 | K19: =SUM(K17:K18) -> 0 | O19: 4 | BA19: =SUM(BA17:BA18) -> 0 | BB19: =SUM(BB17:BB18) -> 0 | BC19: =SUM(BC17:BC18) -> 0 | BD19: =SUM(BD17:BD18) -> 0 | BE19: =SUM(BE17:BE18) -> 0
A20: Díl: | B20: 93 | C20: Dokončovací práce inženýrských staveb | O20: 1
A21: 6 | B21: 938909311R00 | C21: Odstranění nánosu z povrchu živičného nebo beton. | D21: m2 | E21: 205 | G21: =E21*F21 -> 0 | H21: 0 | I21: =E21*H21 -> 0 | J21: 0 | K21: =E21*J21 -> 0 | O21: 2 | AA21: 1 | AB21: 1 | AC21: 1 | AZ21: 1 | BA21: =IF(AZ21=1,G21,0) -> 0 | BB21: =IF(AZ21=2,G21,0) -> 0 | BC21: =IF(AZ21=3,G21,0) -> 0 | BD21: =IF(AZ21=4,G21,0) -> 0 | BE21: =IF(AZ21=5,G21,0) -> 0 | CA21: 1 | CB21: 1
C22: Křižovatka u ČOV:205,00 | E22: 205 | M22: Křižovatka u ČOV:205,00
A23: 7 | B23: 938909611R00 | C23: Odstranění nánosu na krajnicích tl. do 10 cm | D23: m2 | E23: 13.75 | G23: =E23*F23 -> 0 | H23: 0 | I23: =E23*H23 -> 0 | J23: -0.126 | K23: =E23*J23 -> -1.7325 | O23: 2 | AA23: 1 | AB23: 1 | AC23: 1 | AZ23: 1 | BA23: =IF(AZ23=1,G23,0) -> 0 | BB23: =IF(AZ23=2,G23,0) -> 0 | BC23: =IF(AZ23=3,G23,0) -> 0 | BD23: =IF(AZ23=4,G23,0) -> 0 | BE23: =IF(AZ23=5,G23,0) -> 0 | CA23: 1 | CB23: 1
C24: Křižovatka u ČOV:55,00*0,25 | E24: 13.75 | M24: Křižovatka u ČOV:55,00*0,25
B25: Celkem za | C25: 93 Dokončovací práce inženýrských staveb | G25: =SUM(G20:G24) -> 0 | I25: =SUM(I20:I24) -> 0 | K25: =SUM(K20:K24) -> -1.7325 | O25: 4 | BA25: =SUM(BA20:BA24) -> 0 | BB25: =SUM(BB20:BB24) -> 0 | BC25: =SUM(BC20:BC24) -> 0 | BD25: =SUM(BD20:BD24) -> 0 | BE25: =SUM(BE20:BE24) -> 0
A26: Díl: | B26: 99 | C26: Staveništní přesun hmot | O26: 1
A27: 8 | B27: 998225111R00 | C27: Přesun hmot, pozemní komunikace, kryt živičný | D27: t | E27: 50.62638 | G27: =E27*F27 -> 0 | H27: 0 | I27: =E27*H27 -> 0 | K27: =E27*J27 -> 0 | O27: 2 | AA27: 7 | AB27: 1 | AC27: 2 | AZ27: 1 | BA27: =IF(AZ27=1,G27,0) -> 0 | BB27: =IF(AZ27=2,G27,0) -> 0 | BC27: =IF(AZ27=3,G27,0) -> 0 | BD27: =IF(AZ27=4,G27,0) -> 0 | BE27: =IF(AZ27=5,G27,0) -> 0 | CA27: 7 | CB27: 1
B28: Celkem za | C28: 99 Staveništní přesun hmot | G28: =SUM(G26:G27) -> 0 | I28: =SUM(I26:I27) -> 0 | K28: =SUM(K26:K27) -> 0 | O28: 4 | BA28: =SUM(BA26:BA27) -> 0 | BB28: =SUM(BB26:BB27) -> 0 | BC28: =SUM(BC26:BC27) -> 0 | BD28: =SUM(BD26:BD27) -> 0 | BE28: =SUM(BE26:BE27) -> 0

Sheet 105 3326105.3 KL
A1: POLOŽKOVÝ ROZPOČET
A2: Rozpočet | C2: 3326/105.3 | D2: Oprava MK "Mašov-Mašovská u hřbitova"-úsek do ČOV | F2: JKSO | G2: 822.29
A4: Objekt | F4: SKP
A5: 105 | C5: Oprava MK "Mašov - Mašovská u hřbitova" | F5: Měrná jednotka | G5: m2
A6: Stavba | F6: Počet jednotek | G6: 0
A7: 3326 | C7: Oprava místních komunikací Turnov | F7: Náklady na m.j. | G7: =IF(G6=0,,ROUND((F30+F32)/G6,1)) -> 0
A8: Projektant | F8: Typ rozpočtu
A9: Zpracovatel projektu
A10: Objednatel | C10: Město TURNOV
A11: Dodavatel | C11: . | F11: Zakázkové číslo
A12: Rozpočtoval | F12: Počet listů
A13: ROZPOČTOVÉ NÁKLADY
A14: Základní rozpočtové náklady | D14: Ostatní rozpočtové náklady
B15: HSV celkem | C15: ='105 3326105.3 Rek'!E11 -> 0 | D15: ='105 3326105.3 Rek'!A16 -> Zařízení staveniště | G15: ='105 3326105.3 Rek'!I16 -> 0
A16: Z | B16: PSV celkem | C16: ='105 3326105.3 Rek'!F11 -> 0 | D16: ='105 3326105.3 Rek'!A17 -> Kompletační činnost (IČD) | G16: ='105 3326105.3 Rek'!I17 -> 0
A17: R | B17: M práce celkem | C17: ='105 3326105.3 Rek'!H11 -> 0 | D17: ='105 3326105.3 Rek'!A18 -> Vytýčení stavby a podz. inženýrských sítí | G17: ='105 3326105.3 Rek'!I18 -> 0
A18: N | B18: M dodávky celkem | C18: ='105 3326105.3 Rek'!G11 -> 0 | D18: ='105 3326105.3 Rek'!A19 -> DIO | G18: ='105 3326105.3 Rek'!I19 -> 0
A19: ZRN celkem | C19: =SUM(C15:C18) -> 0
A21: HZS | C21: ='105 3326105.3 Rek'!I11 -> 0
A22: ZRN+HZS | C22: =C19+C21 -> 0
A23: ZRN+ost.náklady+HZS | C23: =C22+G23 -> 0 | D23: Ostatní náklady celkem | G23: ='105 3326105.3 Rek'!H20 -> 0
A24: Vypracoval | D24: Za zhotovitele | F24: Za objednatele
A25: Jméno : | D25: Jméno : | F25: Jméno :
A26: Datum : | D26: Datum : | F26: Datum :
A28: Podpis : | D28: Podpis: | F28: Podpis:
A30: Základ pro DPH | C30: 21 | D30: % | F30: =C23-F32 -> 0
A31: DPH | C31: =C30 -> 21 | D31: % | F31: =ROUND(PRODUCT(F30,C31/100),0) -> 0
A32: Základ pro DPH | C32: 0 | D32: % | F32: 0
A33: DPH | C33: =C32 -> 0 | D33: % | F33: =ROUND(PRODUCT(F32,C33/100),0) -> 0
A34: CENA ZA OBJEKT CELKEM | F34: =ROUND(SUM(F30:F33),0) -> 0
A36: Poznámka :

Sheet 105 3326105.3 Rek
A1: Stavba : | C1: 3326 Oprava místních komunikací Turnov | G1: Rozpočet : | H1: 3326/105.3
A2: Objekt : | C2: 105 Oprava MK "Mašov - Mašovská u hřbitova" | G2: Oprava MK "Mašov-Mašovská u hřbitova"-úsek do ČOV
A4: REKAPITULACE STAVEBNÍCH DÍLŮ
B6: Stavební díl | E6: HSV | F6: PSV | G6: Dodávka | H6: Montáž | I6: HZS
A7: ='105 3326105.3 Pol'!B7 -> 5 | B7: ='105 3326105.3 Pol'!C7 -> Komunikace | E7: ='105 3326105.3 Pol'!BA16 -> 0 | F7: ='105 3326105.3 Pol'!BB16 -> 0 | G7: ='105 3326105.3 Pol'!BC16 -> 0 | H7: ='105 3326105.3 Pol'!BD16 -> 0 | I7: ='105 3326105.3 Pol'!BE16 -> 0
A8: ='105 3326105.3 Pol'!B17 -> 8 | B8: ='105 3326105.3 Pol'!C17 -> Trubní vedení | E8: ='105 3326105.3 Pol'!BA20 -> 0 | F8: ='105 3326105.3 Pol'!BB20 -> 0 | G8: ='105 3326105.3 Pol'!BC20 -> 0 | H8: ='105 3326105.3 Pol'!BD20 -> 0 | I8: ='105 3326105.3 Pol'!BE20 -> 0
A9: ='105 3326105.3 Pol'!B21 -> 93 | B9: ='105 3326105.3 Pol'!C21 -> Dokončovací práce inženýrských staveb | E9: ='105 3326105.3 Pol'!BA26 -> 0 | F9: ='105 3326105.3 Pol'!BB26 -> 0 | G9: ='105 3326105.3 Pol'!BC26 -> 0 | H9: ='105 3326105.3 Pol'!BD26 -> 0 | I9: ='105 3326105.3 Pol'!BE26 -> 0
A10: ='105 3326105.3 Pol'!B27 -> 99 | B10: ='105 3326105.3 Pol'!C27 -> Staveništní přesun hmot | E10: ='105 3326105.3 Pol'!BA29 -> 0 | F10: ='105 3326105.3 Pol'!BB29 -> 0 | G10: ='105 3326105.3 Pol'!BC29 -> 0 | H10: ='105 3326105.3 Pol'!BD29 -> 0 | I10: ='105 3326105.3 Pol'!BE29 -> 0
B11: CELKEM OBJEKT | E11: =SUM(E7:E10) -> 0 | F11: =SUM(F7:F10) -> 0 | G11: =SUM(G7:G10) -> 0 | H11: =SUM(H7:H10) -> 0 | I11: =SUM(I7:I10) -> 0
A13: VEDLEJŠÍ ROZPOČTOVÉ NÁKLADY
A15: Název VRN | E15: Kč | I15: Kč
A16: Zařízení staveniště | E16: 0 | I16: =E16+F16*G16/100 -> 0 | BA16: 2
A17: Kompletační činnost (IČD) | E17: 0 | I17: =E17+F17*G17/100 -> 0 | BA17: 2
A18: Vytýčení stavby a podz. inženýrských sítí | E18: 0 | I18: =E18+F18*G18/100 -> 0 | BA18: 0
A19: DIO | E19: 0 | I19: =E19+F19*G19/100 -> 0 | BA19: 0
B20: CELKEM VRN | H20: =SUM(I16:I19) -> 0

Sheet 105 3326105.3 Pol
A1: Položkový rozpočet
A3: Stavba : | C3: 3326 Oprava místních komunikací Turnov | E3: Rozpočet: | F3: ='105 3326105.3 Rek'!H1 -> 3326/105.3
A4: Objekt : | C4: 105 Oprava MK "Mašov - Mašovská u hřbitova" | E4: ='105 3326105.3 Rek'!G2 -> Oprava MK "Mašov-Mašovská u hřbitova"-úsek do ČOV
A6: P.č. | B6: Číslo položky | C6: Název položky | D6: MJ | E6: množství | F6: cena / MJ | G6: celkem (Kč) | H6: Jednotková hmotnost | I6: Celková hmotnost | J6: Jednotková dem.hmot. | K6: Celková dem.hmot.
A7: Díl: | B7: 5 | C7: Komunikace | O7: 1
A8: 1 | B8: 569831111R00 | C8: Zpevnění krajnic štěrkodrtí tloušťky 10 cm | D8: m2 | E8: 16.25 | G8: =E8*F8 -> 0 | H8: 0.18776 | I8: =E8*H8 -> 3.0511 | J8: 0 | K8: =E8*J8 -> 0 | O8: 2 | AA8: 1 | AB8: 1 | AC8: 1 | AZ8: 1 | BA8: =IF(AZ8=1,G8,0) -> 0 | BB8: =IF(AZ8=2,G8,0) -> 0 | BC8: =IF(AZ8=3,G8,0) -> 0 | BD8: =IF(AZ8=4,G8,0) -> 0 | BE8: =IF(AZ8=5,G8,0) -> 0 | CA8: 1 | CB8: 1
C9: Komunikace od ČOV:65,00*0,25 | E9: 16.25 | M9: Komunikace od ČOV:65,00*0,25
A10: 2 | B10: 572713112R00 | C10: Vyrovnání povrchu krytů kamen. obaleným asfaltem | D10: t | E10: 28.875 | G10: =E10*F10 -> 0 | H10: 1 | I10: =E10*H10 -> 28.875 | J10: 0 | K10: =E10*J10 -> 0 | O10: 2 | AA10: 1 | AB10: 1 | AC10: 1 | AZ10: 1 | BA10: =IF(AZ10=1,G10,0) -> 0 | BB10: =IF(AZ10=2,G10,0) -> 0 | BC10: =IF(AZ10=3,G10,0) -> 0 | BD10: =IF(AZ10=4,G10,0) -> 0 | BE10: =IF(AZ10=5,G10,0) -> 0 | CA10: 1 | CB10: 1
C11: Komunikace od ČOV:210,00*0,11/2*2,5 | E11: 28.875 | M11: Komunikace od ČOV:210,00*0,11/2*2,5
A12: 3 | B12: 573231126R00 | C12: Postřik spojovací z KAE množství zbytkového asfaltu 0,6 kg/m2 | D12: m2 | E12: 210 | G12: =E12*F12 -> 0 | H12: 0.0005 | I12: =E12*H12 -> 0.105 | J12: 0 | K12: =E12*J12 -> 0 | O12: 2 | AA12: 1 | AB12: 1 | AC12: 1 | AZ12: 1 | BA12: =IF(AZ12=1,G12,0) -> 0 | BB12: =IF(AZ12=2,G12,0) -> 0 | BC12: =IF(AZ12=3,G12,0) -> 0 | BD12: =IF(AZ12=4,G12,0) -> 0 | BE12: =IF(AZ12=5,G12,0) -> 0 | CA12: 1 | CB12: 1
C13: Komunikace od ČOV:210,00 | E13: 210 | M13: Komunikace od ČOV:210,00
A14: 4 | B14: 577142112RT2 | C14: Beton asfaltový ACO 11+, ACO 16+, nad 3 m, tl.5 cm plochy 201-1000 m2 | D14: m2 | E14: 210 | G14: =E14*F14 -> 0 | H14: 0.12966 | I14: =E14*H14 -> 27.2286 | J14: 0 | K14: =E14*J14 -> 0 | O14: 2 | AA14: 1 | AB14: 1 | AC14: 1 | AZ14: 1 | BA14: =IF(AZ14=1,G14,0) -> 0 | BB14: =IF(AZ14=2,G14,0) -> 0 | BC14: =IF(AZ14=3,G14,0) -> 0 | BD14: =IF(AZ14=4,G14,0) -> 0 | BE14: =IF(AZ14=5,G14,0) -> 0 | CA14: 1 | CB14: 1
C15: Komunikace od ČOV:210,00 | E15: 210 | M15: Komunikace od ČOV:210,00
B16: Celkem za | C16: 5 Komunikace | G16: =SUM(G7:G15) -> 0 | I16: =SUM(I7:I15) -> 59.2597 | K16: =SUM(K7:K15) -> 0 | O16: 4 | BA16: =SUM(BA7:BA15) -> 0 | BB16: =SUM(BB7:BB15) -> 0 | BC16: =SUM(BC7:BC15) -> 0 | BD16: =SUM(BD7:BD15) -> 0 | BE16: =SUM(BE7:BE15) -> 0
A17: Díl: | B17: 8 | C17: Trubní vedení | O17: 1
A18: 5 | B18: 899331111R00 | C18: Výšková úprava vstupu do 20 cm, zvýšení poklopu | D18: kus | E18: 2 | G18: =E18*F18 -> 0 | H18: 0.43094 | I18: =E18*H18 -> 0.86188 | J18: 0 | K18: =E18*J18 -> 0 | O18: 2 | AA18: 1 | AB18: 0 | AC18: 0 | AZ18: 1 | BA18: =IF(AZ18=1,G18,0) -> 0 | BB18: =IF(AZ18=2,G18,0) -> 0 | BC18: =IF(AZ18=3,G18,0) -> 0 | BD18: =IF(AZ18=4,G18,0) -> 0 | BE18: =IF(AZ18=5,G18,0) -> 0 | CA18: 1 | CB18: 0
A19: 6 | B19: 899431111R00 | C19: Výšková úprava do 20 cm, zvýšení krytu šoupěte | D19: kus | E19: 4 | G19: =E19*F19 -> 0 | H19: 0.3159 | I19: =E19*H19 -> 1.2636 | J19: 0 | K19: =E19*J19 -> 0 | O19: 2 | AA19: 1 | AB19: 1 | AC19: 1 | AZ19: 1 | BA19: =IF(AZ19=1,G19,0) -> 0 | BB19: =IF(AZ19=2,G19,0) -> 0 | BC19: =IF(AZ19=3,G19,0) -> 0 | BD19: =IF(AZ19=4,G19,0) -> 0 | BE19: =IF(AZ19=5,G19,0) -> 0 | CA19: 1 | CB19: 1
B20: Celkem za | C20: 8 Trubní vedení | G20: =SUM(G17:G19) -> 0 | I20: =SUM(I17:I19) -> 2.12548 | K20: =SUM(K17:K19) -> 0 | O20: 4 | BA20: =SUM(BA17:BA19) -> 0 | BB20: =SUM(BB17:BB19) -> 0 | BC20: =SUM(BC17:BC19) -> 0 | BD20: =SUM(BD17:BD19) -> 0 | BE20: =SUM(BE17:BE19) -> 0
A21: Díl: | B21: 93 | C21: Dokončovací práce inženýrských staveb | O21: 1
A22: 7 | B22: 938909311R00 | C22: Odstranění nánosu z povrchu živičného nebo beton. | D22: m2 | E22: 210 | G22: =E22*F22 -> 0 | H22: 0 | I22: =E22*H22 -> 0 | J22: 0 | K22: =E22*J22 -> 0 | O22: 2 | AA22: 1 | AB22: 1 | AC22: 1 | AZ22: 1 | BA22: =IF(AZ22=1,G22,0) -> 0 | BB22: =IF(AZ22=2,G22,0) -> 0 | BC22: =IF(AZ22=3,G22,0) -> 0 | BD22: =IF(AZ22=4,G22,0) -> 0 | BE22: =IF(AZ22=5,G22,0) -> 0 | CA22: 1 | CB22: 1
C23: Komunikace od ČOV:210,00 | E23: 210 | M23: Komunikace od ČOV:210,00
A24: 8 | B24: 938909611R00 | C24: Odstranění nánosu na krajnicích tl. do 10 cm | D24: m2 | E24: 16.25 | G24: =E24*F24 -> 0 | H24: 0 | I24: =E24*H24 -> 0 | J24: -0.126 | K24: =E24*J24 -> -2.0475 | O24: 2 | AA24: 1 | AB24: 1 | AC24: 1 | AZ24: 1 | BA24: =IF(AZ24=1,G24,0) -> 0 | BB24: =IF(AZ24=2,G24,0) -> 0 | BC24: =IF(AZ24=3,G24,0) -> 0 | BD24: =IF(AZ24=4,G24,0) -> 0 | BE24: =IF(AZ24=5,G24,0) -> 0 | CA24: 1 | CB24: 1
C25: Komunikace od ČOV:65,00*0,25 | E25: 16.25 | M25: Komunikace od ČOV:65,00*0,25
B26: Celkem za | C26: 93 Dokončovací práce inženýrských staveb | G26: =SUM(G21:G25) -> 0 | I26: =SUM(I21:I25) -> 0 | K26: =SUM(K21:K25) -> -2.0475 | O26: 4 | BA26: =SUM(BA21:BA25) -> 0 | BB26: =SUM(BB21:BB25) -> 0 | BC26: =SUM(BC21:BC25) -> 0 | BD26: =SUM(BD21:BD25) -> 0 | BE26: =SUM(BE21:BE25) -> 0
A27: Díl: | B27: 99 | C27: Staveništní přesun hmot | O27: 1
A28: 9 | B28: 998225111R00 | C28: Přesun hmot, pozemní komunikace, kryt živičný | D28: t | E28: 61.38518 | G28: =E28*F28 -> 0 | H28: 0 | I28: =E28*H28 -> 0 | K28: =E28*J28 -> 0 | O28: 2 | AA28: 7 | AB28: 1 | AC28: 2 | AZ28: 1 | BA28: =IF(AZ28=1,G28,0) -> 0 | BB28: =IF(AZ28=2,G28,0) -> 0 | BC28: =IF(AZ28=3,G28,0) -> 0 | BD28: =IF(AZ28=4,G28,0) -> 0 | BE28: =IF(AZ28=5,G28,0) -> 0 | CA28: 7 | CB28: 1
B29: Celkem za | C29: 99 Staveništní přesun hmot | G29: =SUM(G27:G28) -> 0 | I29: =SUM(I27:I28) -> 0 | K29: =SUM(K27:K28) -> 0 | O29: 4 | BA29: =SUM(BA27:BA28) -> 0 | BB29: =SUM(BB27:BB28) -> 0 | BC29: =SUM(BC27:BC28) -> 0 | BD29: =SUM(BD27:BD28) -> 0 | BE29: =SUM(BE27:BE28) -> 0

Sheet 106 3326106 KL
A1: POLOŽKOVÝ ROZPOČET
A2: Rozpočet | C2: 3326/106 | D2: Oprava ZP na ppč. 130/1 a 141/2 v kú. Turnov | F2: JKSO | G2: 822.52
A4: Objekt | F4: SKP
A5: 106 | C5: Oprava ZP na ppč. 130/1 a 141/2 v kú. Turnov | F5: Měrná jednotka | G5: m2
A6: Stavba | F6: Počet jednotek | G6: 0
A7: 3326 | C7: Oprava místních komunikací Turnov | F7: Náklady na m.j. | G7: =IF(G6=0,,ROUND((F30+F32)/G6,1)) -> 0
A8: Projektant | F8: Typ rozpočtu
A9: Zpracovatel projektu
A10: Objednatel | C10: Město TURNOV
A11: Dodavatel | C11: . | F11: Zakázkové číslo
A12: Rozpočtoval | F12: Počet listů
A13: ROZPOČTOVÉ NÁKLADY
A14: Základní rozpočtové náklady | D14: Ostatní rozpočtové náklady
B15: HSV celkem | C15: ='106 3326106 Rek'!E12 -> 0 | D15: ='106 3326106 Rek'!A17 -> Zařízení staveniště | G15: ='106 3326106 Rek'!I17 -> 0
A16: Z | B16: PSV celkem | C16: ='106 3326106 Rek'!F12 -> 0 | D16: ='106 3326106 Rek'!A18 -> Provoz investora | G16: ='106 3326106 Rek'!I18 -> 0
A17: R | B17: M práce celkem | C17: ='106 3326106 Rek'!H12 -> 0 | D17: ='106 3326106 Rek'!A19 -> Kompletační činnost (IČD) | G17: ='106 3326106 Rek'!I19 -> 0
A18: N | B18: M dodávky celkem | C18: ='106 3326106 Rek'!G12 -> 0 | D18: ='106 3326106 Rek'!A20 -> Vytýčení stavby a podz. inženýrských sítí | G18: ='106 3326106 Rek'!I20 -> 0
A19: ZRN celkem | C19: =SUM(C15:C18) -> 0 | D19: ='106 3326106 Rek'!A21 -> DIO | G19: ='106 3326106 Rek'!I21 -> 0
A21: HZS | C21: ='106 3326106 Rek'!I12 -> 0
A22: ZRN+HZS | C22: =C19+C21 -> 0
A23: ZRN+ost.náklady+HZS | C23: =C22+G23 -> 0 | D23: Ostatní náklady celkem | G23: ='106 3326106 Rek'!H22 -> 0
A24: Vypracoval | D24: Za zhotovitele | F24: Za objednatele
A25: Jméno : | D25: Jméno : | F25: Jméno :
A26: Datum : | D26: Datum : | F26: Datum :
A28: Podpis : | D28: Podpis: | F28: Podpis:
A30: Základ pro DPH | C30: 21 | D30: % | F30: =C23-F32 -> 0
A31: DPH | C31: =C30 -> 21 | D31: % | F31: =ROUND(PRODUCT(F30,C31/100),0) -> 0
A32: Základ pro DPH | C32: 0 | D32: % | F32: 0
A33: DPH | C33: =C32 -> 0 | D33: % | F33: =ROUND(PRODUCT(F32,C33/100),0) -> 0
A34: CENA ZA OBJEKT CELKEM | F34: =ROUND(SUM(F30:F33),0) -> 0
A36: Poznámka :

Sheet 106 3326106 Rek
A1: Stavba : | C1: 3326 Oprava místních komunikací Turnov | G1: Rozpočet : | H1: 3326/106
A2: Objekt : | C2: 106 Oprava ZP na ppč. 130/1 a 141/2 v kú. Turnov | G2: Oprava ZP na ppč. 130/1 a 141/2 v kú. Turnov
A4: REKAPITULACE STAVEBNÍCH DÍLŮ
B6: Stavební díl | E6: HSV | F6: PSV | G6: Dodávka | H6: Montáž | I6: HZS
A7: ='106 3326106 Pol'!B7 -> 1 | B7: ='106 3326106 Pol'!C7 -> Zemní práce | E7: ='106 3326106 Pol'!BA20 -> 0 | F7: ='106 3326106 Pol'!BB20 -> 0 | G7: ='106 3326106 Pol'!BC20 -> 0 | H7: ='106 3326106 Pol'!BD20 -> 0 | I7: ='106 3326106 Pol'!BE20 -> 0
A8: ='106 3326106 Pol'!B21 -> 5 | B8: ='106 3326106 Pol'!C21 -> Komunikace | E8: ='106 3326106 Pol'!BA38 -> 0 | F8: ='106 3326106 Pol'!BB38 -> 0 | G8: ='106 3326106 Pol'!BC38 -> 0 | H8: ='106 3326106 Pol'!BD38 -> 0 | I8: ='106 3326106 Pol'!BE38 -> 0
A9: ='106 3326106 Pol'!B39 -> 91 | B9: ='106 3326106 Pol'!C39 -> Doplňující práce na komunikaci | E9: ='106 3326106 Pol'!BA46 -> 0 | F9: ='106 3326106 Pol'!BB46 -> 0 | G9: ='106 3326106 Pol'!BC46 -> 0 | H9: ='106 3326106 Pol'!BD46 -> 0 | I9: ='106 3326106 Pol'!BE46 -> 0
A10: ='106 3326106 Pol'!B47 -> 93 | B10: ='106 3326106 Pol'!C47 -> Dokončovací práce inženýrských staveb | E10: ='106 3326106 Pol'!BA51 -> 0 | F10: ='106 3326106 Pol'!BB51 -> 0 | G10: ='106 3326106 Pol'!BC51 -> 0 | H10: ='106 3326106 Pol'!BD51 -> 0 | I10: ='106 3326106 Pol'!BE51 -> 0
A11: ='106 3326106 Pol'!B52 -> 99 | B11: ='106 3326106 Pol'!C52 -> Staveništní přesun hmot | E11: ='106 3326106 Pol'!BA54 -> 0 | F11: ='106 3326106 Pol'!BB54 -> 0 | G11: ='106 3326106 Pol'!BC54 -> 0 | H11: ='106 3326106 Pol'!BD54 -> 0 | I11: ='106 3326106 Pol'!BE54 -> 0
B12: CELKEM OBJEKT | E12: =SUM(E7:E11) -> 0 | F12: =SUM(F7:F11) -> 0 | G12: =SUM(G7:G11) -> 0 | H12: =SUM(H7:H11) -> 0 | I12: =SUM(I7:I11) -> 0
A14: VEDLEJŠÍ ROZPOČTOVÉ NÁKLADY
A16: Název VRN | E16: Kč | I16: Kč
A17: Zařízení staveniště | E17: 0 | I17: =E17+F17*G17/100 -> 0 | BA17: 2
A18: Provoz investora | E18: 0 | I18: =E18+F18*G18/100 -> 0 | BA18: 1
A19: Kompletační činnost (IČD) | E19: 0 | I19: =E19+F19*G19/100 -> 0 | BA19: 2
A20: Vytýčení stavby a podz. inženýrských sítí | E20: 0 | I20: =E20+F20*G20/100 -> 0 | BA20: 0
A21: DIO | E21: 0 | I21: =E21+F21*G21/100 -> 0 | BA21: 0
B22: CELKEM VRN | H22: =SUM(I17:I21) -> 0

Sheet 106 3326106 Pol
A1: Položkový rozpočet
A3: Stavba : | C3: 3326 Oprava místních komunikací Turnov | E3: Rozpočet: | F3: ='106 3326106 Rek'!H1 -> 3326/106
A4: Objekt : | C4: 106 Oprava ZP na ppč. 130/1 a 141/2 v kú. Turnov | E4: ='106 3326106 Rek'!G2 -> Oprava ZP na ppč. 130/1 a 141/2 v kú. Turnov
A6: P.č. | B6: Číslo položky | C6: Název položky | D6: MJ | E6: množství | F6: cena / MJ | G6: celkem (Kč) | H6: Jednotková hmotnost | I6: Celková hmotnost | J6: Jednotková dem.hmot. | K6: Celková dem.hmot.
A7: Díl: | B7: 1 | C7: Zemní práce | O7: 1
A8: 1 | B8: 113106121R00 | C8: Rozebrání dlažeb z betonových dlaždic na sucho pro opětovné použití | D8: m2 | E8: 52 | G8: =E8*F8 -> 0 | H8: 0.138 | I8: =E8*H8 -> 7.176 | J8: -0.138 | K8: =E8*J8 -> -7.176 | O8: 2 | AA8: 1 | AB8: 1 | AC8: 1 | AZ8: 1 | BA8: =IF(AZ8=1,G8,0) -> 0 | BB8: =IF(AZ8=2,G8,0) -> 0 | BC8: =IF(AZ8=3,G8,0) -> 0 | BD8: =IF(AZ8=4,G8,0) -> 0 | BE8: =IF(AZ8=5,G8,0) -> 0 | CA8: 1 | CB8: 1
C9: Okapový chodník u objektu:52,00*1,00 | E9: 52 | M9: Okapový chodník u objektu:52,00*1,00
A10: 2 | B10: 113107515R00 | C10: Odstranění podkladu pl. 50 m2,kam.drcené tl.15 cm | D10: m2 | E10: 18.45 | G10: =E10*F10 -> 0 | H10: 0 | I10: =E10*H10 -> 0 | J10: -0.33 | K10: =E10*J10 -> -6.0885 | O10: 2 | AA10: 1 | AB10: 1 | AC10: 1 | AZ10: 1 | BA10: =IF(AZ10=1,G10,0) -> 0 | BB10: =IF(AZ10=2,G10,0) -> 0 | BC10: =IF(AZ10=3,G10,0) -> 0 | BD10: =IF(AZ10=4,G10,0) -> 0 | BE10: =IF(AZ10=5,G10,0) -> 0 | CA10: 1 | CB10: 1
C11: Průměrná hloubka | L11: Průměrná hloubka | O11: 3
C12: Podél okapového chodníku:52,00*0,30 | E12: 15.6 | M12: Podél okapového chodníku:52,00*0,30
C13: Na konci parkovací plochy:9,50*0,30 | E13: 2.85 | M13: Na konci parkovací plochy:9,50*0,30
A14: 3 | B14: 113107610R00 | C14: Odstranění podkladu nad 50 m2,kam.drcené tl.10 cm | D14: m2 | E14: 137.5 | G14: =E14*F14 -> 0 | H14: 0 | I14: =E14*H14 -> 0 | J14: -0.22 | K14: =E14*J14 -> -30.25 | O14: 2 | AA14: 1 | AB14: 1 | AC14: 1 | AZ14: 1 | BA14: =IF(AZ14=1,G14,0) -> 0 | BB14: =IF(AZ14=2,G14,0) -> 0 | BC14: =IF(AZ14=3,G14,0) -> 0 | BD14: =IF(AZ14=4,G14,0) -> 0 | BE14: =IF(AZ14=5,G14,0) -> 0 | CA14: 1 | CB14: 1
C15: Průměrná tloušťka | L15: Průměrná tloušťka | O15: 3
C16: Plocha části podél trafostanice:15,00*3,00*0,5 | E16: 22.5 | M16: Plocha části podél trafostanice:15,00*3,00*0,5
C17: Plocha části parkoviště:23,00*5,00 | E17: 115 | M17: Plocha části parkoviště:23,00*5,00
A18: 4 | B18: 979082113RSZ | C18: Vodorovná doprava suti po suchu na skládku zhotovitele | D18: t | E18: 36.3385 | G18: =E18*F18 -> 0 | H18: 0 | I18: =E18*H18 -> 0 | J18: 0 | K18: =E18*J18 -> 0 | O18: 2 | AA18: 1 | AB18: 1 | AC18: 1 | AZ18: 1 | BA18: =IF(AZ18=1,G18,0) -> 0 | BB18: =IF(AZ18=2,G18,0) -> 0 | BC18: =IF(AZ18=3,G18,0) -> 0 | BD18: =IF(AZ18=4,G18,0) -> 0 | BE18: =IF(AZ18=5,G18,0) -> 0 | CA18: 1 | CB18: 1
A19: 5 | B19: 979089001R00 | C19: Poplatek za uložení odpadního štěrku a kameniva skupina odpadu 010408 | D19: t | E19: 36.3385 | G19: =E19*F19 -> 0 | H19: 0 | I19: =E19*H19 -> 0 | J19: 0 | K19: =E19*J19 -> 0 | O19: 2 | AA19: 1 | AB19: 0 | AC19: 0 | AZ19: 1 | BA19: =IF(AZ19=1,G19,0) -> 0 | BB19: =IF(AZ19=2,G19,0) -> 0 | BC19: =IF(AZ19=3,G19,0) -> 0 | BD19: =IF(AZ19=4,G19,0) -> 0 | BE19: =IF(AZ19=5,G19,0) -> 0 | CA19: 1 | CB19: 0
B20: Celkem za | C20: 1 Zemní práce | G20: =SUM(G7:G19) -> 0 | I20: =SUM(I7:I19) -> 7.176 | K20: =SUM(K7:K19) -> -43.5145 | O20: 4 | BA20: =SUM(BA7:BA19) -> 0 | BB20: =SUM(BB7:BB19) -> 0 | BC20: =SUM(BC7:BC19) -> 0 | BD20: =SUM(BD7:BD19) -> 0 | BE20: =SUM(BE7:BE19) -> 0
A21: Díl: | B21: 5 | C21: Komunikace | O21: 1
A22: 6 | B22: 566501111R00 | C22: Úprava krytu kamenivem drceným do 0,10 m3/m2 | D22: m2 | E22: 237 | G22: =E22*F22 -> 0 | H22: 0.17726 | I22: =E22*H22 -> 42.01062 | J22: 0 | K22: =E22*J22 -> 0 | O22: 2 | AA22: 1 | AB22: 1 | AC22: 1 | AZ22: 1 | BA22: =IF(AZ22=1,G22,0) -> 0 | BB22: =IF(AZ22=2,G22,0) -> 0 | BC22: =IF(AZ22=3,G22,0) -> 0 | BD22: =IF(AZ22=4,G22,0) -> 0 | BE22: =IF(AZ22=5,G22,0) -> 0 | CA22: 1 | CB22: 1
C23: Průměrná tloušťka | L23: Průměrná tloušťka | O23: 3
C24: Okapový chodník u objektu (tl. 0 - 20 cm):52,00*1,00 | E24: 52 | M24: Okapový chodník u objektu (tl. 0 - 20 cm):52,00*1,00
C25: Plocha podél trafostanice:15,00*3,00 | E25: 45 | M25: Plocha podél trafostanice:15,00*3,00
C26: Plocha části parkoviště (tl. 0 - 20 cm):28,00*5,00 | E26: 140 | M26: Plocha části parkoviště (tl. 0 - 20 cm):28,00*5,00
A27: 7 | B27: 569831111R00 | C27: Zpevnění krajnic štěrkodrtí tloušťky 10 cm | D27: m2 | E27: 38.5 | G27: =E27*F27 -> 0 | H27: 0.18776 | I27: =E27*H27 -> 7.22876 | J27: 0 | K27: =E27*J27 -> 0 | O27: 2 | AA27: 1 | AB27: 1 | AC27: 1 | AZ27: 1 | BA27: =IF(AZ27=1,G27,0) -> 0 | BB27: =IF(AZ27=2,G27,0) -> 0 | BC27: =IF(AZ27=3,G27,0) -> 0 | BD27: =IF(AZ27=4,G27,0) -> 0 | BE27: =IF(AZ27=5,G27,0) -> 0 | CA27: 1 | CB27: 1
C28: Plocha podél trafostanice:15,00*0,25*2 | E28: 7.5 | M28: Plocha podél trafostanice:15,00*0,25*2
C29: Plocha části parkoviště:31,00*1,00 | E29: 31 | M29: Plocha části parkoviště:31,00*1,00
A30: 8 | B30: 573111111R00 | C30: Postřik živičný infiltr.+ posyp, asfalt. 0,60kg/m2 | D30: m2 | E30: 200 | G30: =E30*F30 -> 0 | H30: 0.00561 | I30: =E30*H30 -> 1.122 | J30: 0 | K30: =E30*J30 -> 0 | O30: 2 | AA30: 1 | AB30: 1 | AC30: 1 | AZ30: 1 | BA30: =IF(AZ30=1,G30,0) -> 0 | BB30: =IF(AZ30=2,G30,0) -> 0 | BC30: =IF(AZ30=3,G30,0) -> 0 | BD30: =IF(AZ30=4,G30,0) -> 0 | BE30: =IF(AZ30=5,G30,0) -> 0 | CA30: 1 | CB30: 1
C31: Plocha podél trafostanice:15,00*3,00 | E31: 45 | M31: Plocha podél trafostanice:15,00*3,00
C32: Plocha části parkoviště:31,00*5,00 | E32: 155 | M32: Plocha části parkoviště:31,00*5,00
A33: 9 | B33: 577162214RT3 | C33: Beton asfaltový ACO 16 obrusný, š.nad 3 m, tl.7 cm plochy 101-200 m2 | D33: m2 | E33: 200 | G33: =E33*F33 -> 0 | H33: 0.17872 | I33: =E33*H33 -> 35.744 | J33: 0 | K33: =E33*J33 -> 0 | O33: 2 | AA33: 1 | AB33: 1 | AC33: 1 | AZ33: 1 | BA33: =IF(AZ33=1,G33,0) -> 0 | BB33: =IF(AZ33=2,G33,0) -> 0 | BC33: =IF(AZ33=3,G33,0) -> 0 | BD33: =IF(AZ33=4,G33,0) -> 0 | BE33: =IF(AZ33=5,G33,0) -> 0 | CA33: 1 | CB33: 1
C34: Plocha podél trafostanice:15,00*3,00 | E34: 45 | M34: Plocha podél trafostanice:15,00*3,00
C35: Plocha části parkoviště:31,00*5,00 | E35: 155 | M35: Plocha části parkoviště:31,00*5,00
A36: 10 | B36: 596811111R00 | C36: Kladení dlaždic kom.pro pěší, lože z kameniva těž. Původní betonová dlažba 50x50 cm | D36: m2 | E36: 52 | G36: =E36*F36 -> 0 | H36: 0.202 | I36: =E36*H36 -> 10.504 | J36: 0 | K36: =E36*J36 -> 0 | O36: 2 | AA36: 1 | AB36: 1 | AC36: 1 | AZ36: 1 | BA36: =IF(AZ36=1,G36,0) -> 0 | BB36: =IF(AZ36=2,G36,0) -> 0 | BC36: =IF(AZ36=3,G36,0) -> 0 | BD36: =IF(AZ36=4,G36,0) -> 0 | BE36: =IF(AZ36=5,G36,0) -> 0 | CA36: 1 | CB36: 1
C37: Okapový chodník u objektu:52,00*1,00 | E37: 52 | M37: Okapový chodník u objektu:52,00*1,00
B38: Celkem za | C38: 5 Komunikace | G38: =SUM(G21:G37) -> 0 | I38: =SUM(I21:I37) -> 96.60938 | K38: =SUM(K21:K37) -> 0 | O38: 4 | BA38: =SUM(BA21:BA37) -> 0 | BB38: =SUM(BB21:BB37) -> 0 | BC38: =SUM(BC21:BC37) -> 0 | BD38: =SUM(BD21:BD37) -> 0 | BE38: =SUM(BE21:BE37) -> 0
A39: Díl: | B39: 91 | C39: Doplňující práce na komunikaci | O39: 1
A40: 11 | B40: 917862111RT5 | C40: Osazení stojat. obrub.bet. s opěrou,lože z C 12/15 včetně obrubníku ABO 100/10/25 | D40: m | E40: 61.5 | G40: =E40*F40 -> 0 | H40: 0.22133 | I40: =E40*H40 -> 13.611795 | J40: 0 | K40: =E40*J40 -> 0 | O40: 2 | AA40: 1 | AB40: 1 | AC40: 1 | AZ40: 1 | BA40: =IF(AZ40=1,G40,0) -> 0 | BB40: =IF(AZ40=2,G40,0) -> 0 | BC40: =IF(AZ40=3,G40,0) -> 0 | BD40: =IF(AZ40=4,G40,0) -> 0 | BE40: =IF(AZ40=5,G40,0) -> 0 | CA40: 1 | CB40: 1
C41: Podél okapového chodníku:52,00 | E41: 52 | M41: Podél okapového chodníku:52,00
C42: Na konci parkovací plochy:9,50 | E42: 9.5 | M42: Na konci parkovací plochy:9,50
A43: 12 | B43: 918101111R00 | C43: Lože pod obrubníky nebo obruby dlažeb z C 12/15 | D43: m3 | E43: 1.845 | G43: =E43*F43 -> 0 | H43: 2.525 | I43: =E43*H43 -> 4.658625 | J43: 0 | K43: =E43*J43 -> 0 | O43: 2 | AA43: 1 | AB43: 1 | AC43: 1 | AZ43: 1 | BA43: =IF(AZ43=1,G43,0) -> 0 | BB43: =IF(AZ43=2,G43,0) -> 0 | BC43: =IF(AZ43=3,G43,0) -> 0 | BD43: =IF(AZ43=4,G43,0) -> 0 | BE43: =IF(AZ43=5,G43,0) -> 0 | CA43: 1 | CB43: 1
C44: Podél okapového chodníku:52,00*0,30*0,10 | E44: 1.56 | M44: Podél okapového chodníku:52,00*0,30*0,10
C45: Na konci parkovací plochy:9,50*0,30*0,10 | E45: 0.285 | M45: Na konci parkovací plochy:9,50*0,30*0,10
B46: Celkem za | C46: 91 Doplňující práce na komunikaci | G46: =SUM(G39:G45) -> 0 | I46: =SUM(I39:I45) -> 18.27042 | K46: =SUM(K39:K45) -> 0 | O46: 4 | BA46: =SUM(BA39:BA45) -> 0 | BB46: =SUM(BB39:BB45) -> 0 | BC46: =SUM(BC39:BC45) -> 0 | BD46: =SUM(BD39:BD45) -> 0 | BE46: =SUM(BE39:BE45) -> 0
A47: Díl: | B47: 93 | C47: Dokončovací práce inženýrských staveb | O47: 1
A48: 13 | B48: 938909111R00 | C48: Odstranění nánosu s povrchu podkladu štěrkového | D48: m2 | E48: 200 | G48: =E48*F48 -> 0 | H48: 0 | I48: =E48*H48 -> 0 | J48: 0 | K48: =E48*J48 -> 0 | O48: 2 | AA48: 1 | AB48: 1 | AC48: 1 | AZ48: 1 | BA48: =IF(AZ48=1,G48,0) -> 0 | BB48: =IF(AZ48=2,G48,0) -> 0 | BC48: =IF(AZ48=3,G48,0) -> 0 | BD48: =IF(AZ48=4,G48,0) -> 0 | BE48: =IF(AZ48=5,G48,0) -> 0 | CA48: 1 | CB48: 1
C49: Plocha podél trafostanice:15,00*3,00 | E49: 45 | M49: Plocha podél trafostanice:15,00*3,00
C50: Plocha části parkoviště:31,00*5,00 | E50: 155 | M50: Plocha části parkoviště:31,00*5,00
B51: Celkem za | C51: 93 Dokončovací práce inženýrských staveb | G51: =SUM(G47:G50) -> 0 | I51: =SUM(I47:I50) -> 0 | K51: =SUM(K47:K50) -> 0 | O51: 4 | BA51: =SUM(BA47:BA50) -> 0 | BB51: =SUM(BB47:BB50) -> 0 | BC51: =SUM(BC47:BC50) -> 0 | BD51: =SUM(BD47:BD50) -> 0 | BE51: =SUM(BE47:BE50) -> 0
A52: Díl: | B52: 99 | C52: Staveništní přesun hmot | O52: 1
A53: 14 | B53: 998225111R00 | C53: Přesun hmot, pozemní komunikace, kryt živičný | D53: t | E53: 122.0558 | G53: =E53*F53 -> 0 | H53: 0 | I53: =E53*H53 -> 0 | K53: =E53*J53 -> 0 | O53: 2 | AA53: 7 | AB53: 1 | AC53: 2 | AZ53: 1 | BA53: =IF(AZ53=1,G53,0) -> 0 | BB53: =IF(AZ53=2,G53,0) -> 0 | BC53: =IF(AZ53=3,G53,0) -> 0 | BD53: =IF(AZ53=4,G53,0) -> 0 | BE53: =IF(AZ53=5,G53,0) -> 0 | CA53: 7 | CB53: 1
B54: Celkem za | C54: 99 Staveništní přesun hmot | G54: =SUM(G52:G53) -> 0 | I54: =SUM(I52:I53) -> 0 | K54: =SUM(K52:K53) -> 0 | O54: 4 | BA54: =SUM(BA52:BA53) -> 0 | BB54: =SUM(BB52:BB53) -> 0 | BC54: =SUM(BC52:BC53) -> 0 | BD54: =SUM(BD52:BD53) -> 0 | BE54: =SUM(BE52:BE53) -> 0

Sheet 107 3326107 KL
A1: POLOŽKOVÝ ROZPOČET
A2: Rozpočet | C2: 3326/107 | D2: Vesecko - Rozšíření pruhu zpevněné plochy -3,0 m | F2: JKSO | G2: 822.52
A4: Objekt | F4: SKP
A5: 107 | C5: Vesecko - Rozšíření zpevněné plochy | F5: Měrná jednotka | G5: m2
A6: Stavba | F6: Počet jednotek | G6: 0
A7: 3326 | C7: Oprava místních komunikací Turnov | F7: Náklady na m.j. | G7: =IF(G6=0,,ROUND((F30+F32)/G6,1)) -> 0
A8: Projektant | F8: Typ rozpočtu
A9: Zpracovatel projektu
A10: Objednatel | C10: Město TURNOV
A11: Dodavatel | C11: . | F11: Zakázkové číslo
A12: Rozpočtoval | F12: Počet listů
A13: ROZPOČTOVÉ NÁKLADY
A14: Základní rozpočtové náklady | D14: Ostatní rozpočtové náklady
B15: HSV celkem | C15: ='107 3326107 Rek'!E12 -> 0 | D15: ='107 3326107 Rek'!A17 -> Zařízení staveniště | G15: ='107 3326107 Rek'!I17 -> 0
A16: Z | B16: PSV celkem | C16: ='107 3326107 Rek'!F12 -> 0 | D16: ='107 3326107 Rek'!A18 -> Provoz investora | G16: ='107 3326107 Rek'!I18 -> 0
A17: R | B17: M práce celkem | C17: ='107 3326107 Rek'!H12 -> 0 | D17: ='107 3326107 Rek'!A19 -> Kompletační činnost (IČD) | G17: ='107 3326107 Rek'!I19 -> 0
A18: N | B18: M dodávky celkem | C18: ='107 3326107 Rek'!G12 -> 0 | D18: ='107 3326107 Rek'!A20 -> DIO | G18: ='107 3326107 Rek'!I20 -> 0
A19: ZRN celkem | C19: =SUM(C15:C18) -> 0
A21: HZS | C21: ='107 3326107 Rek'!I12 -> 0
A22: ZRN+HZS | C22: =C19+C21 -> 0
A23: ZRN+ost.náklady+HZS | C23: =C22+G23 -> 0 | D23: Ostatní náklady celkem | G23: ='107 3326107 Rek'!H21 -> 0
A24: Vypracoval | D24: Za zhotovitele | F24: Za objednatele
A25: Jméno : | D25: Jméno : | F25: Jméno :
A26: Datum : | D26: Datum : | F26: Datum :
A28: Podpis : | D28: Podpis: | F28: Podpis:
A30: Základ pro DPH | C30: 21 | D30: % | F30: =C23-F32 -> 0
A31: DPH | C31: =C30 -> 21 | D31: % | F31: =ROUND(PRODUCT(F30,C31/100),0) -> 0
A32: Základ pro DPH | C32: 0 | D32: % | F32: 0
A33: DPH | C33: =C32 -> 0 | D33: % | F33: =ROUND(PRODUCT(F32,C33/100),0) -> 0
A34: CENA ZA OBJEKT CELKEM | F34: =ROUND(SUM(F30:F33),0) -> 0
A36: Poznámka :

Sheet 107 3326107 Rek
A1: Stavba : | C1: 3326 Oprava místních komunikací Turnov | G1: Rozpočet : | H1: 3326/107
A2: Objekt : | C2: 107 Vesecko - Rozšíření zpevněné plochy | G2: Vesecko - Rozšíření pruhu zpevněné plochy -3,0 m
A4: REKAPITULACE STAVEBNÍCH DÍLŮ
B6: Stavební díl | E6: HSV | F6: PSV | G6: Dodávka | H6: Montáž | I6: HZS
A7: ='107 3326107 Pol'!B7 -> 1 | B7: ='107 3326107 Pol'!C7 -> Zemní práce | E7: ='107 3326107 Pol'!BA13 -> 0 | F7: ='107 3326107 Pol'!BB13 -> 0 | G7: ='107 3326107 Pol'!BC13 -> 0 | H7: ='107 3326107 Pol'!BD13 -> 0 | I7: ='107 3326107 Pol'!BE13 -> 0
A8: ='107 3326107 Pol'!B14 -> 5 | B8: ='107 3326107 Pol'!C14 -> Komunikace | E8: ='107 3326107 Pol'!BA21 -> 0 | F8: ='107 3326107 Pol'!BB21 -> 0 | G8: ='107 3326107 Pol'!BC21 -> 0 | H8: ='107 3326107 Pol'!BD21 -> 0 | I8: ='107 3326107 Pol'!BE21 -> 0
A9: ='107 3326107 Pol'!B22 -> 91 | B9: ='107 3326107 Pol'!C22 -> Doplňující práce na komunikaci | E9: ='107 3326107 Pol'!BA27 -> 0 | F9: ='107 3326107 Pol'!BB27 -> 0 | G9: ='107 3326107 Pol'!BC27 -> 0 | H9: ='107 3326107 Pol'!BD27 -> 0 | I9: ='107 3326107 Pol'!BE27 -> 0
A10: ='107 3326107 Pol'!B28 -> 93 | B10: ='107 3326107 Pol'!C28 -> Dokončovací práce inženýrských staveb | E10: ='107 3326107 Pol'!BA33 -> 0 | F10: ='107 3326107 Pol'!BB33 -> 0 | G10: ='107 3326107 Pol'!BC33 -> 0 | H10: ='107 3326107 Pol'!BD33 -> 0 | I10: ='107 3326107 Pol'!BE33 -> 0
A11: ='107 3326107 Pol'!B34 -> 99 | B11: ='107 3326107 Pol'!C34 -> Staveništní přesun hmot | E11: ='107 3326107 Pol'!BA36 -> 0 | F11: ='107 3326107 Pol'!BB36 -> 0 | G11: ='107 3326107 Pol'!BC36 -> 0 | H11: ='107 3326107 Pol'!BD36 -> 0 | I11: ='107 3326107 Pol'!BE36 -> 0
B12: CELKEM OBJEKT | E12: =SUM(E7:E11) -> 0 | F12: =SUM(F7:F11) -> 0 | G12: =SUM(G7:G11) -> 0 | H12: =SUM(H7:H11) -> 0 | I12: =SUM(I7:I11) -> 0
A14: VEDLEJŠÍ ROZPOČTOVÉ NÁKLADY
A16: Název VRN | E16: Kč | I16: Kč
A17: Zařízení staveniště | E17: 0 | I17: =E17+F17*G17/100 -> 0 | BA17: 2
A18: Provoz investora | E18: 0 | I18: =E18+F18*G18/100 -> 0 | BA18: 1
A19: Kompletační činnost (IČD) | E19: 0 | I19: =E19+F19*G19/100 -> 0 | BA19: 2
A20: DIO | E20: 0 | I20: =E20+F20*G20/100 -> 0 | BA20: 0
B21: CELKEM VRN | H21: =SUM(I17:I20) -> 0

Sheet 107 3326107 Pol
A1: Položkový rozpočet
A3: Stavba : | C3: 3326 Oprava místních komunikací Turnov | E3: Rozpočet: | F3: ='107 3326107 Rek'!H1 -> 3326/107
A4: Objekt : | C4: 107 Vesecko - Rozšíření zpevněné plochy | E4: ='107 3326107 Rek'!G2 -> Vesecko - Rozšíření pruhu zpevněné plochy -3,0 m
A6: P.č. | B6: Číslo položky | C6: Název položky | D6: MJ | E6: množství | F6: cena / MJ | G6: celkem (Kč) | H6: Jednotková hmotnost | I6: Celková hmotnost | J6: Jednotková dem.hmot. | K6: Celková dem.hmot.
A7: Díl: | B7: 1 | C7: Zemní práce | O7: 1
A8: 1 | B8: 113108305R00 | C8: Odstranění asfaltové vrstvy pl.do 50 m2, tl. 5 cm | D8: m2 | E8: 239.25 | G8: =E8*F8 -> 0 | H8: 0 | I8: =E8*H8 -> 0 | J8: -0.11 | K8: =E8*J8 -> -26.3175 | O8: 2 | AA8: 1 | AB8: 1 | AC8: 1 | AZ8: 1 | BA8: =IF(AZ8=1,G8,0) -> 0 | BB8: =IF(AZ8=2,G8,0) -> 0 | BC8: =IF(AZ8=3,G8,0) -> 0 | BD8: =IF(AZ8=4,G8,0) -> 0 | BE8: =IF(AZ8=5,G8,0) -> 0 | CA8: 1 | CB8: 1
C9: Plocha upravované ZP - lokálně odstraňovaná degradovaná vrstva na 55% plochy:145,00*3,00*0,55 | E9: 239.25 | M9: Plocha upravované ZP - lokálně odstraňovaná degradovaná vrstva na 55% plochy:145,00*3,00*0,55
A10: 2 | B10: 979082113RSZ | C10: Vodorovná doprava suti po suchu na skládku zhotovitele | D10: t | E10: 26.3175 | G10: =E10*F10 -> 0 | H10: 0 | I10: =E10*H10 -> 0 | J10: 0 | K10: =E10*J10 -> 0 | O10: 2 | AA10: 1 | AB10: 1 | AC10: 1 | AZ10: 1 | BA10: =IF(AZ10=1,G10,0) -> 0 | BB10: =IF(AZ10=2,G10,0) -> 0 | BC10: =IF(AZ10=3,G10,0) -> 0 | BD10: =IF(AZ10=4,G10,0) -> 0 | BE10: =IF(AZ10=5,G10,0) -> 0 | CA10: 1 | CB10: 1
A11: 3 | B11: 979990112RRA | C11: Poplatek za skládku suti - obalované kam. - asfalt | D11: t | E11: 26.3175 | G11: =E11*F11 -> 0 | H11: 0 | I11: =E11*H11 -> 0 | J11: 0 | K11: =E11*J11 -> 0 | O11: 2 | AA11: 1 | AB11: 1 | AC11: 1 | AZ11: 1 | BA11: =IF(AZ11=1,G11,0) -> 0 | BB11: =IF(AZ11=2,G11,0) -> 0 | BC11: =IF(AZ11=3,G11,0) -> 0 | BD11: =IF(AZ11=4,G11,0) -> 0 | BE11: =IF(AZ11=5,G11,0) -> 0 | CA11: 1 | CB11: 1
C12: Položka je určena pro suť o velikosti kusu do 30x30 cm (technologický materiál určený k recyklaci). | L12: Položka je určena pro suť o velikosti kusu do 30x30 cm (technologický materiál určený k recyklaci). | O12: 3
B13: Celkem za | C13: 1 Zemní práce | G13: =SUM(G7:G12) -> 0 | I13: =SUM(I7:I12) -> 0 | K13: =SUM(K7:K12) -> -26.3175 | O13: 4 | BA13: =SUM(BA7:BA12) -> 0 | BB13: =SUM(BB7:BB12) -> 0 | BC13: =SUM(BC7:BC12) -> 0 | BD13: =SUM(BD7:BD12) -> 0 | BE13: =SUM(BE7:BE12) -> 0
A14: Díl: | B14: 5 | C14: Komunikace | O14: 1
A15: 4 | B15: 572713112R00 | C15: Vyrovnání povrchu krytů kamen. obaleným asfaltem | D15: t | E15: 29.9063 | G15: =E15*F15 -> 0 | H15: 1 | I15: =E15*H15 -> 29.9063 | J15: 0 | K15: =E15*J15 -> 0 | O15: 2 | AA15: 1 | AB15: 1 | AC15: 1 | AZ15: 1 | BA15: =IF(AZ15=1,G15,0) -> 0 | BB15: =IF(AZ15=2,G15,0) -> 0 | BC15: =IF(AZ15=3,G15,0) -> 0 | BD15: =IF(AZ15=4,G15,0) -> 0 | BE15: =IF(AZ15=5,G15,0) -> 0 | CA15: 1 | CB15: 1
C16: Plocha upravované ZP - vyrovnávací vrstva na 55% plochy:145,00*3,00*0,05*2,50*0,55 | E16: 29.9063 | M16: Plocha upravované ZP - vyrovnávací vrstva na 55% plochy:145,00*3,00*0,05*2,50*0,55
A17: 5 | B17: 573231126R00 | C17: Postřik spojovací z KAE množství zbytkového asfaltu 0,6 kg/m2 | D17: m2 | E17: 674.25 | G17: =E17*F17 -> 0 | H17: 0.0005 | I17: =E17*H17 -> 0.337125 | J17: 0 | K17: =E17*J17 -> 0 | O17: 2 | AA17: 1 | AB17: 1 | AC17: 1 | AZ17: 1 | BA17: =IF(AZ17=1,G17,0) -> 0 | BB17: =IF(AZ17=2,G17,0) -> 0 | BC17: =IF(AZ17=3,G17,0) -> 0 | BD17: =IF(AZ17=4,G17,0) -> 0 | BE17: =IF(AZ17=5,G17,0) -> 0 | CA17: 1 | CB17: 1
C18: Plocha upravované ZP:145,00*3,00*(1,00+0,55) | E18: 674.25 | M18: Plocha upravované ZP:145,00*3,00*(1,00+0,55)
A19: 6 | B19: 577131111RT2 | C19: Beton asfalt. ACO 11+ obrusný, š. do 3 m, tl. 4 cm plochy 201-1000 m2 | D19: m2 | E19: 435 | G19: =E19*F19 -> 0 | H19: 0.10373 | I19: =E19*H19 -> 45.12255 | J19: 0 | K19: =E19*J19 -> 0 | O19: 2 | AA19: 1 | AB19: 1 | AC19: 1 | AZ19: 1 | BA19: =IF(AZ19=1,G19,0) -> 0 | BB19: =IF(AZ19=2,G19,0) -> 0 | BC19: =IF(AZ19=3,G19,0) -> 0 | BD19: =IF(AZ19=4,G19,0) -> 0 | BE19: =IF(AZ19=5,G19,0) -> 0 | CA19: 1 | CB19: 1
C20: Plocha upravované ZP:145,00*3,00 | E20: 435 | M20: Plocha upravované ZP:145,00*3,00
B21: Celkem za | C21: 5 Komunikace | G21: =SUM(G14:G20) -> 0 | I21: =SUM(I14:I20) -> 75.365975 | K21: =SUM(K14:K20) -> 0 | O21: 4 | BA21: =SUM(BA14:BA20) -> 0 | BB21: =SUM(BB14:BB20) -> 0 | BC21: =SUM(BC14:BC20) -> 0 | BD21: =SUM(BD14:BD20) -> 0 | BE21: =SUM(BE14:BE20) -> 0
A22: Díl: | B22: 91 | C22: Doplňující práce na komunikaci | O22: 1
A23: 7 | B23: 919723111R00 | C23: Dilatační spáry - řezání, podélné, šířka 2 - 5 mm | D23: m | E23: 160 | G23: =E23*F23 -> 0 | H23: 1e-05 | I23: =E23*H23 -> 0.0016 | J23: 0 | K23: =E23*J23 -> 0 | O23: 2 | AA23: 1 | AB23: 1 | AC23: 1 | AZ23: 1 | BA23: =IF(AZ23=1,G23,0) -> 0 | BB23: =IF(AZ23=2,G23,0) -> 0 | BC23: =IF(AZ23=3,G23,0) -> 0 | BD23: =IF(AZ23=4,G23,0) -> 0 | BE23: =IF(AZ23=5,G23,0) -> 0 | CA23: 1 | CB23: 1
A24: 8 | B24: 919723211R00 | C24: Dilatační spáry řez.podélné 9 mm,zalití za studena | D24: m | E24: 160 | G24: =E24*F24 -> 0 | H24: 2e-05 | I24: =E24*H24 -> 0.0032 | J24: 0 | K24: =E24*J24 -> 0 | O24: 2 | AA24: 1 | AB24: 1 | AC24: 1 | AZ24: 1 | BA24: =IF(AZ24=1,G24,0) -> 0 | BB24: =IF(AZ24=2,G24,0) -> 0 | BC24: =IF(AZ24=3,G24,0) -> 0 | BD24: =IF(AZ24=4,G24,0) -> 0 | BE24: =IF(AZ24=5,G24,0) -> 0 | CA24: 1 | CB24: 1
A25: 9 | B25: 919731121R00 | C25: Zarovnání styčné plochy živičné tl. do 5 cm | D25: m | E25: 160 | G25: =E25*F25 -> 0 | H25: 0 | I25: =E25*H25 -> 0 | J25: 0 | K25: =E25*J25 -> 0 | O25: 2 | AA25: 1 | AB25: 1 | AC25: 1 | AZ25: 1 | BA25: =IF(AZ25=1,G25,0) -> 0 | BB25: =IF(AZ25=2,G25,0) -> 0 | BC25: =IF(AZ25=3,G25,0) -> 0 | BD25: =IF(AZ25=4,G25,0) -> 0 | BE25: =IF(AZ25=5,G25,0) -> 0 | CA25: 1 | CB25: 1
A26: 10 | B26: 919735111R00 | C26: Řezání stávajícího živičného krytu tl. do 5 cm | D26: m | E26: 160 | G26: =E26*F26 -> 0 | H26: 0 | I26: =E26*H26 -> 0 | J26: 0 | K26: =E26*J26 -> 0 | O26: 2 | AA26: 1 | AB26: 1 | AC26: 1 | AZ26: 1 | BA26: =IF(AZ26=1,G26,0) -> 0 | BB26: =IF(AZ26=2,G26,0) -> 0 | BC26: =IF(AZ26=3,G26,0) -> 0 | BD26: =IF(AZ26=4,G26,0) -> 0 | BE26: =IF(AZ26=5,G26,0) -> 0 | CA26: 1 | CB26: 1
B27: Celkem za | C27: 91 Doplňující práce na komunikaci | G27: =SUM(G22:G26) -> 0 | I27: =SUM(I22:I26) -> 0.0048 | K27: =SUM(K22:K26) -> 0 | O27: 4 | BA27: =SUM(BA22:BA26) -> 0 | BB27: =SUM(BB22:BB26) -> 0 | BC27: =SUM(BC22:BC26) -> 0 | BD27: =SUM(BD22:BD26) -> 0 | BE27: =SUM(BE22:BE26) -> 0
A28: Díl: | B28: 93 | C28: Dokončovací práce inženýrských staveb | O28: 1
A29: 11 | B29: 938908411R00 | C29: Očištění povrchu krytu saponátovým roztokem | D29: m2 | E29: 435 | G29: =E29*F29 -> 0 | H29: 1e-05 | I29: =E29*H29 -> 0.00435 | J29: 0 | K29: =E29*J29 -> 0 | O29: 2 | AA29: 1 | AB29: 1 | AC29: 1 | AZ29: 1 | BA29: =IF(AZ29=1,G29,0) -> 0 | BB29: =IF(AZ29=2,G29,0) -> 0 | BC29: =IF(AZ29=3,G29,0) -> 0 | BD29: =IF(AZ29=4,G29,0) -> 0 | BE29: =IF(AZ29=5,G29,0) -> 0 | CA29: 1 | CB29: 1
C30: Plocha upravované ZP:145,00*3,00 | E30: 435 | M30: Plocha upravované ZP:145,00*3,00
A31: 12 | B31: 938909311R00 | C31: Odstranění nánosu z povrchu živičného nebo beton. | D31: m2 | E31: 435 | G31: =E31*F31 -> 0 | H31: 0 | I31: =E31*H31 -> 0 | J31: 0 | K31: =E31*J31 -> 0 | O31: 2 | AA31: 1 | AB31: 1 | AC31: 1 | AZ31: 1 | BA31: =IF(AZ31=1,G31,0) -> 0 | BB31: =IF(AZ31=2,G31,0) -> 0 | BC31: =IF(AZ31=3,G31,0) -> 0 | BD31: =IF(AZ31=4,G31,0) -> 0 | BE31: =IF(AZ31=5,G31,0) -> 0 | CA31: 1 | CB31: 1
C32: Plocha upravované ZP:145,00*3,00 | E32: 435 | M32: Plocha upravované ZP:145,00*3,00
B33: Celkem za | C33: 93 Dokončovací práce inženýrských staveb | G33: =SUM(G28:G32) -> 0 | I33: =SUM(I28:I32) -> 0.00435 | K33: =SUM(K28:K32) -> 0 | O33: 4 | BA33: =SUM(BA28:BA32) -> 0 | BB33: =SUM(BB28:BB32) -> 0 | BC33: =SUM(BC28:BC32) -> 0 | BD33: =SUM(BD28:BD32) -> 0 | BE33: =SUM(BE28:BE32) -> 0
A34: Díl: | B34: 99 | C34: Staveništní přesun hmot | O34: 1
A35: 13 | B35: 998225111R00 | C35: Přesun hmot, pozemní komunikace, kryt živičný | D35: t | E35: 75.375125 | G35: =E35*F35 -> 0 | H35: 0 | I35: =E35*H35 -> 0 | K35: =E35*J35 -> 0 | O35: 2 | AA35: 7 | AB35: 1 | AC35: 2 | AZ35: 1 | BA35: =IF(AZ35=1,G35,0) -> 0 | BB35: =IF(AZ35=2,G35,0) -> 0 | BC35: =IF(AZ35=3,G35,0) -> 0 | BD35: =IF(AZ35=4,G35,0) -> 0 | BE35: =IF(AZ35=5,G35,0) -> 0 | CA35: 7 | CB35: 1
B36: Celkem za | C36: 99 Staveništní přesun hmot | G36: =SUM(G34:G35) -> 0 | I36: =SUM(I34:I35) -> 0 | K36: =SUM(K34:K35) -> 0 | O36: 4 | BA36: =SUM(BA34:BA35) -> 0 | BB36: =SUM(BB34:BB35) -> 0 | BC36: =SUM(BC34:BC35) -> 0 | BD36: =SUM(BD34:BD35) -> 0 | BE36: =SUM(BE34:BE35) -> 0

Sheet 108 3326108 KL
A1: POLOŽKOVÝ ROZPOČET
A2: Rozpočet | C2: 3326/108 | D2: Oprava komunikace "Ve Struhách" od čp. 908 | F2: JKSO | G2: 822.29
A4: Objekt | F4: SKP
A5: 108 | C5: Oprava komunikace "Ve Struhách" | F5: Měrná jednotka | G5: m2
A6: Stavba | F6: Počet jednotek | G6: 0
A7: 3326 | C7: Oprava místních komunikací Turnov | F7: Náklady na m.j. | G7: =IF(G6=0,,ROUND((F30+F32)/G6,1)) -> 0
A8: Projektant | F8: Typ rozpočtu
A9: Zpracovatel projektu
A10: Objednatel | C10: Město TURNOV
A11: Dodavatel | C11: . | F11: Zakázkové číslo
A12: Rozpočtoval | F12: Počet listů
A13: ROZPOČTOVÉ NÁKLADY
A14: Základní rozpočtové náklady | D14: Ostatní rozpočtové náklady
B15: HSV celkem | C15: ='108 3326108 Rek'!E13 -> 0 | D15: ='108 3326108 Rek'!A18 -> Zařízení staveniště | G15: ='108 3326108 Rek'!I18 -> 0
A16: Z | B16: PSV celkem | C16: ='108 3326108 Rek'!F13 -> 0 | D16: ='108 3326108 Rek'!A19 -> Kompletační činnost (IČD) | G16: ='108 3326108 Rek'!I19 -> 0
A17: R | B17: M práce celkem | C17: ='108 3326108 Rek'!H13 -> 0 | D17: ='108 3326108 Rek'!A20 -> DIO | G17: ='108 3326108 Rek'!I20 -> 0
A18: N | B18: M dodávky celkem | C18: ='108 3326108 Rek'!G13 -> 0
A19: ZRN celkem | C19: =SUM(C15:C18) -> 0
A21: HZS | C21: ='108 3326108 Rek'!I13 -> 0
A22: ZRN+HZS | C22: =C19+C21 -> 0
A23: ZRN+ost.náklady+HZS | C23: =C22+G23 -> 0 | D23: Ostatní náklady celkem | G23: ='108 3326108 Rek'!H21 -> 0
A24: Vypracoval | D24: Za zhotovitele | F24: Za objednatele
A25: Jméno : | D25: Jméno : | F25: Jméno :
A26: Datum : | D26: Datum : | F26: Datum :
A28: Podpis : | D28: Podpis: | F28: Podpis:
A30: Základ pro DPH | C30: 21 | D30: % | F30: =C23-F32 -> 0
A31: DPH | C31: =C30 -> 21 | D31: % | F31: =ROUND(PRODUCT(F30,C31/100),0) -> 0
A32: Základ pro DPH | C32: 0 | D32: % | F32: 0
A33: DPH | C33: =C32 -> 0 | D33: % | F33: =ROUND(PRODUCT(F32,C33/100),0) -> 0
A34: CENA ZA OBJEKT CELKEM | F34: =ROUND(SUM(F30:F33),0) -> 0
A36: Poznámka :

Sheet 108 3326108 Rek
A1: Stavba : | C1: 3326 Oprava místních komunikací Turnov | G1: Rozpočet : | H1: 3326/108
A2: Objekt : | C2: 108 Oprava komunikace "Ve Struhách" | G2: Oprava komunikace "Ve Struhách" od čp. 908
A4: REKAPITULACE STAVEBNÍCH DÍLŮ
B6: Stavební díl | E6: HSV | F6: PSV | G6: Dodávka | H6: Montáž | I6: HZS
A7: ='108 3326108 Pol'!B7 -> 1 | B7: ='108 3326108 Pol'!C7 -> Zemní práce | E7: ='108 3326108 Pol'!BA16 -> 0 | F7: ='108 3326108 Pol'!BB16 -> 0 | G7: ='108 3326108 Pol'!BC16 -> 0 | H7: ='108 3326108 Pol'!BD16 -> 0 | I7: ='108 3326108 Pol'!BE16 -> 0
A8: ='108 3326108 Pol'!B17 -> 5 | B8: ='108 3326108 Pol'!C17 -> Komunikace | E8: ='108 3326108 Pol'!BA32 -> 0 | F8: ='108 3326108 Pol'!BB32 -> 0 | G8: ='108 3326108 Pol'!BC32 -> 0 | H8: ='108 3326108 Pol'!BD32 -> 0 | I8: ='108 3326108 Pol'!BE32 -> 0
A9: ='108 3326108 Pol'!B33 -> 8 | B9: ='108 3326108 Pol'!C33 -> Trubní vedení | E9: ='108 3326108 Pol'!BA35 -> 0 | F9: ='108 3326108 Pol'!BB35 -> 0 | G9: ='108 3326108 Pol'!BC35 -> 0 | H9: ='108 3326108 Pol'!BD35 -> 0 | I9: ='108 3326108 Pol'!BE35 -> 0
A10: ='108 3326108 Pol'!B36 -> 91 | B10: ='108 3326108 Pol'!C36 -> Doplňující práce na komunikaci | E10: ='108 3326108 Pol'!BA41 -> 0 | F10: ='108 3326108 Pol'!BB41 -> 0 | G10: ='108 3326108 Pol'!BC41 -> 0 | H10: ='108 3326108 Pol'!BD41 -> 0 | I10: ='108 3326108 Pol'!BE41 -> 0
A11: ='108 3326108 Pol'!B42 -> 93 | B11: ='108 3326108 Pol'!C42 -> Dokončovací práce inženýrských staveb | E11: ='108 3326108 Pol'!BA45 -> 0 | F11: ='108 3326108 Pol'!BB45 -> 0 | G11: ='108 3326108 Pol'!BC45 -> 0 | H11: ='108 3326108 Pol'!BD45 -> 0 | I11: ='108 3326108 Pol'!BE45 -> 0
A12: ='108 3326108 Pol'!B46 -> 99 | B12: ='108 3326108 Pol'!C46 -> Staveništní přesun hmot | E12: ='108 3326108 Pol'!BA48 -> 0 | F12: ='108 3326108 Pol'!BB48 -> 0 | G12: ='108 3326108 Pol'!BC48 -> 0 | H12: ='108 3326108 Pol'!BD48 -> 0 | I12: ='108 3326108 Pol'!BE48 -> 0
B13: CELKEM OBJEKT | E13: =SUM(E7:E12) -> 0 | F13: =SUM(F7:F12) -> 0 | G13: =SUM(G7:G12) -> 0 | H13: =SUM(H7:H12) -> 0 | I13: =SUM(I7:I12) -> 0
A15: VEDLEJŠÍ ROZPOČTOVÉ NÁKLADY
A17: Název VRN | E17: Kč | I17: Kč
A18: Zařízení staveniště | E18: 0 | I18: =E18+F18*G18/100 -> 0 | BA18: 2
A19: Kompletační činnost (IČD) | E19: 0 | I19: =E19+F19*G19/100 -> 0 | BA19: 2
A20: DIO | E20: 0 | I20: =E20+F20*G20/100 -> 0 | BA20: 0
B21: CELKEM VRN | H21: =SUM(I18:I20) -> 0

Sheet 108 3326108 Pol
A1: Položkový rozpočet
A3: Stavba : | C3: 3326 Oprava místních komunikací Turnov | E3: Rozpočet: | F3: ='108 3326108 Rek'!H1 -> 3326/108
A4: Objekt : | C4: 108 Oprava komunikace "Ve Struhách" | E4: ='108 3326108 Rek'!G2 -> Oprava komunikace "Ve Struhách" od čp. 908
A6: P.č. | B6: Číslo položky | C6: Název položky | D6: MJ | E6: množství | F6: cena / MJ | G6: celkem (Kč) | H6: Jednotková hmotnost | I6: Celková hmotnost | J6: Jednotková dem.hmot. | K6: Celková dem.hmot.
A7: Díl: | B7: 1 | C7: Zemní práce | O7: 1
A8: 1 | B8: 113107320RRR | C8: Odstranění podkladu pl. 50 m2,kam.těžené tl.20 cm včetně cihel a zeminy | D8: m2 | E8: 28 | G8: =E8*F8 -> 0 | H8: 0 | I8: =E8*H8 -> 0 | J8: -0.44 | K8: =E8*J8 -> -12.32 | O8: 2 | AA8: 1 | AB8: 1 | AC8: 1 | AZ8: 1 | BA8: =IF(AZ8=1,G8,0) -> 0 | BB8: =IF(AZ8=2,G8,0) -> 0 | BC8: =IF(AZ8=3,G8,0) -> 0 | BD8: =IF(AZ8=4,G8,0) -> 0 | BE8: =IF(AZ8=5,G8,0) -> 0 | CA8: 1 | CB8: 1
C9: Část plochy komunikace:40,00*0,70 | E9: 28 | M9: Část plochy komunikace:40,00*0,70
A10: 2 | B10: 113108442R00 | C10: Rozrytí krytu,kamenivo bez zhut.,se živič. pojivem | D10: m2 | E10: 185 | G10: =E10*F10 -> 0 | H10: 0 | I10: =E10*H10 -> 0 | J10: 0 | K10: =E10*J10 -> 0 | O10: 2 | AA10: 1 | AB10: 0 | AC10: 0 | AZ10: 1 | BA10: =IF(AZ10=1,G10,0) -> 0 | BB10: =IF(AZ10=2,G10,0) -> 0 | BC10: =IF(AZ10=3,G10,0) -> 0 | BD10: =IF(AZ10=4,G10,0) -> 0 | BE10: =IF(AZ10=5,G10,0) -> 0 | CA10: 1 | CB10: 0
C11: Plocha komunikace :185,00 | E11: 185 | M11: Plocha komunikace :185,00
A12: 3 | B12: 113109320RRR | C12: Odstranění podkladu pl.50 m2, bet.prostý tl.20 cm včetně likvidace suti | D12: m2 | E12: 2.25 | G12: =E12*F12 -> 0 | H12: 0 | I12: =E12*H12 -> 0 | J12: -0.48 | K12: =E12*J12 -> -1.08 | O12: 2 | AA12: 1 | AB12: 1 | AC12: 1 | AZ12: 1 | BA12: =IF(AZ12=1,G12,0) -> 0 | BB12: =IF(AZ12=2,G12,0) -> 0 | BC12: =IF(AZ12=3,G12,0) -> 0 | BD12: =IF(AZ12=4,G12,0) -> 0 | BE12: =IF(AZ12=5,G12,0) -> 0 | CA12: 1 | CB12: 1
C13: Szávající odvodňovací žlab:4,50*0,50 | E13: 2.25 | M13: Szávající odvodňovací žlab:4,50*0,50
A14: 4 | B14: 979082113RSZ | C14: Vodorovná doprava suti po suchu na skládku zhotovitele | D14: t | E14: 12.32 | G14: =E14*F14 -> 0 | H14: 0 | I14: =E14*H14 -> 0 | J14: 0 | K14: =E14*J14 -> 0 | O14: 2 | AA14: 1 | AB14: 1 | AC14: 1 | AZ14: 1 | BA14: =IF(AZ14=1,G14,0) -> 0 | BB14: =IF(AZ14=2,G14,0) -> 0 | BC14: =IF(AZ14=3,G14,0) -> 0 | BD14: =IF(AZ14=4,G14,0) -> 0 | BE14: =IF(AZ14=5,G14,0) -> 0 | CA14: 1 | CB14: 1
A15: 5 | B15: 979089001R00 | C15: Poplatek za uložení odpadního štěrku a kameniva skupina odpadu 010408 | D15: t | E15: 12.32 | G15: =E15*F15 -> 0 | H15: 0 | I15: =E15*H15 -> 0 | J15: 0 | K15: =E15*J15 -> 0 | O15: 2 | AA15: 1 | AB15: 0 | AC15: 0 | AZ15: 1 | BA15: =IF(AZ15=1,G15,0) -> 0 | BB15: =IF(AZ15=2,G15,0) -> 0 | BC15: =IF(AZ15=3,G15,0) -> 0 | BD15: =IF(AZ15=4,G15,0) -> 0 | BE15: =IF(AZ15=5,G15,0) -> 0 | CA15: 1 | CB15: 0
B16: Celkem za | C16: 1 Zemní práce | G16: =SUM(G7:G15) -> 0 | I16: =SUM(I7:I15) -> 0 | K16: =SUM(K7:K15) -> -13.4 | O16: 4 | BA16: =SUM(BA7:BA15) -> 0 | BB16: =SUM(BB7:BB15) -> 0 | BC16: =SUM(BC7:BC15) -> 0 | BD16: =SUM(BD7:BD15) -> 0 | BE16: =SUM(BE7:BE15) -> 0
A17: Díl: | B17: 5 | C17: Komunikace | O17: 1
A18: 6 | B18: 564861111RT4 | C18: Podklad ze štěrkodrti po zhutnění tloušťky 20 cm štěrkodrť frakce 0-63 mm | D18: m2 | E18: 28 | G18: =E18*F18 -> 0 | H18: 0.441 | I18: =E18*H18 -> 12.348 | J18: 0 | K18: =E18*J18 -> 0 | O18: 2 | AA18: 1 | AB18: 1 | AC18: 1 | AZ18: 1 | BA18: =IF(AZ18=1,G18,0) -> 0 | BB18: =IF(AZ18=2,G18,0) -> 0 | BC18: =IF(AZ18=3,G18,0) -> 0 | BD18: =IF(AZ18=4,G18,0) -> 0 | BE18: =IF(AZ18=5,G18,0) -> 0 | CA18: 1 | CB18: 1
C19: Část plochy komunikace - doplnění:40,00*0,70 | E19: 28 | M19: Část plochy komunikace - doplnění:40,00*0,70
A20: 7 | B20: 564901113R00 | C20: Recyklace podkladu s přid.kameniva drc. 0,08 m3/m2 | D20: m2 | E20: 185 | G20: =E20*F20 -> 0 | H20: 0.13769 | I20: =E20*H20 -> 25.47265 | J20: 0 | K20: =E20*J20 -> 0 | O20: 2 | AA20: 1 | AB20: 0 | AC20: 0 | AZ20: 1 | BA20: =IF(AZ20=1,G20,0) -> 0 | BB20: =IF(AZ20=2,G20,0) -> 0 | BC20: =IF(AZ20=3,G20,0) -> 0 | BD20: =IF(AZ20=4,G20,0) -> 0 | BE20: =IF(AZ20=5,G20,0) -> 0 | CA20: 1 | CB20: 0
C21: Plocha komunikace :185,00 | E21: 185 | M21: Plocha komunikace :185,00
A22: 8 | B22: 569831111R00 | C22: Zpevnění krajnic štěrkodrtí tloušťky 10 cm | D22: m2 | E22: 21.25 | G22: =E22*F22 -> 0 | H22: 0.18776 | I22: =E22*H22 -> 3.9899 | J22: 0 | K22: =E22*J22 -> 0 | O22: 2 | AA22: 1 | AB22: 1 | AC22: 1 | AZ22: 1 | BA22: =IF(AZ22=1,G22,0) -> 0 | BB22: =IF(AZ22=2,G22,0) -> 0 | BC22: =IF(AZ22=3,G22,0) -> 0 | BD22: =IF(AZ22=4,G22,0) -> 0 | BE22: =IF(AZ22=5,G22,0) -> 0 | CA22: 1 | CB22: 1
C23: Dosypání krajnic:85,00*0,25 | E23: 21.25 | M23: Dosypání krajnic:85,00*0,25
A24: 9 | B24: 572713112R00 | C24: Vyrovnání povrchu krytů kamen. obaleným asfaltem | D24: t | E24: 23.125 | G24: =E24*F24 -> 0 | H24: 1 | I24: =E24*H24 -> 23.125 | J24: 0 | K24: =E24*J24 -> 0 | O24: 2 | AA24: 1 | AB24: 1 | AC24: 1 | AZ24: 1 | BA24: =IF(AZ24=1,G24,0) -> 0 | BB24: =IF(AZ24=2,G24,0) -> 0 | BC24: =IF(AZ24=3,G24,0) -> 0 | BD24: =IF(AZ24=4,G24,0) -> 0 | BE24: =IF(AZ24=5,G24,0) -> 0 | CA24: 1 | CB24: 1
C25: Plocha komunikace :185,00*0,05*2,5 | E25: 23.125 | M25: Plocha komunikace :185,00*0,05*2,5
A26: 10 | B26: 573231126R00 | C26: Postřik spojovací z KAE množství zbytkového asfaltu 0,6 kg/m2 | D26: m2 | E26: 185 | G26: =E26*F26 -> 0 | H26: 0.0005 | I26: =E26*H26 -> 0.0925 | J26: 0 | K26: =E26*J26 -> 0 | O26: 2 | AA26: 1 | AB26: 1 | AC26: 1 | AZ26: 1 | BA26: =IF(AZ26=1,G26,0) -> 0 | BB26: =IF(AZ26=2,G26,0) -> 0 | BC26: =IF(AZ26=3,G26,0) -> 0 | BD26: =IF(AZ26=4,G26,0) -> 0 | BE26: =IF(AZ26=5,G26,0) -> 0 | CA26: 1 | CB26: 1
C27: Plocha komunikace :185,00 | E27: 185 | M27: Plocha komunikace :185,00
A28: 11 | B28: 577151113RT3 | C28: Beton asfalt. ACO 16+ obrusný, š. do 3 m, tl. 6 cm plochy 101-200 m2 | D28: m2 | E28: 185 | G28: =E28*F28 -> 0 | H28: 0.15559 | I28: =E28*H28 -> 28.78415 | J28: 0 | K28: =E28*J28 -> 0 | O28: 2 | AA28: 1 | AB28: 1 | AC28: 1 | AZ28: 1 | BA28: =IF(AZ28=1,G28,0) -> 0 | BB28: =IF(AZ28=2,G28,0) -> 0 | BC28: =IF(AZ28=3,G28,0) -> 0 | BD28: =IF(AZ28=4,G28,0) -> 0 | BE28: =IF(AZ28=5,G28,0) -> 0 | CA28: 1 | CB28: 1
C29: Plocha komunikace :185,00 | E29: 185 | M29: Plocha komunikace :185,00
A30: 12 | B30: 597141221R00 | C30: Rigol dlážděný, lom.kámen 25 cm, MC, lože štěrkop. | D30: m | E30: 4.5 | G30: =E30*F30 -> 0 | H30: 1.22925 | I30: =E30*H30 -> 5.531625 | J30: 0 | K30: =E30*J30 -> 0 | O30: 2 | AA30: 1 | AB30: 1 | AC30: 1 | AZ30: 1 | BA30: =IF(AZ30=1,G30,0) -> 0 | BB30: =IF(AZ30=2,G30,0) -> 0 | BC30: =IF(AZ30=3,G30,0) -> 0 | BD30: =IF(AZ30=4,G30,0) -> 0 | BE30: =IF(AZ30=5,G30,0) -> 0 | CA30: 1 | CB30: 1
C31: Odvodňovací žlab:4,50 | E31: 4.5 | M31: Odvodňovací žlab:4,50
B32: Celkem za | C32: 5 Komunikace | G32: =SUM(G17:G31) -> 0 | I32: =SUM(I17:I31) -> 99.343825 | K32: =SUM(K17:K31) -> 0 | O32: 4 | BA32: =SUM(BA17:BA31) -> 0 | BB32: =SUM(BB17:BB31) -> 0 | BC32: =SUM(BC17:BC31) -> 0 | BD32: =SUM(BD17:BD31) -> 0 | BE32: =SUM(BE17:BE31) -> 0
A33: Díl: | B33: 8 | C33: Trubní vedení | O33: 1
A34: 13 | B34: 899231111R00 | C34: Výšková úprava vstupu do 20 cm, zvýšení mříže | D34: kus | E34: 1 | G34: =E34*F34 -> 0 | H34: 0.43382 | I34: =E34*H34 -> 0.43382 | J34: 0 | K34: =E34*J34 -> 0 | O34: 2 | AA34: 1 | AB34: 1 | AC34: 1 | AZ34: 1 | BA34: =IF(AZ34=1,G34,0) -> 0 | BB34: =IF(AZ34=2,G34,0) -> 0 | BC34: =IF(AZ34=3,G34,0) -> 0 | BD34: =IF(AZ34=4,G34,0) -> 0 | BE34: =IF(AZ34=5,G34,0) -> 0 | CA34: 1 | CB34: 1
B35: Celkem za | C35: 8 Trubní vedení | G35: =SUM(G33:G34) -> 0 | I35: =SUM(I33:I34) -> 0.43382 | K35: =SUM(K33:K34) -> 0 | O35: 4 | BA35: =SUM(BA33:BA34) -> 0 | BB35: =SUM(BB33:BB34) -> 0 | BC35: =SUM(BC33:BC34) -> 0 | BD35: =SUM(BD33:BD34) -> 0 | BE35: =SUM(BE33:BE34) -> 0
A36: Díl: | B36: 91 | C36: Doplňující práce na komunikaci | O36: 1
A37: 14 | B37: 918101111R00 | C37: Lože pod obrubníky nebo obruby dlažeb z C 12/15 | D37: m3 | E37: 0.3375 | G37: =E37*F37 -> 0 | H37: 2.525 | I37: =E37*H37 -> 0.8521875 | J37: 0 | K37: =E37*J37 -> 0 | O37: 2 | AA37: 1 | AB37: 1 | AC37: 1 | AZ37: 1 | BA37: =IF(AZ37=1,G37,0) -> 0 | BB37: =IF(AZ37=2,G37,0) -> 0 | BC37: =IF(AZ37=3,G37,0) -> 0 | BD37: =IF(AZ37=4,G37,0) -> 0 | BE37: =IF(AZ37=5,G37,0) -> 0 | CA37: 1 | CB37: 1
C38: Odvodňovací žlab:4,50*0,50*0,15 | E38: 0.3375 | M38: Odvodňovací žlab:4,50*0,50*0,15
A39: 15 | B39: 919731122R00 | C39: Zarovnání styčné plochy živičné tl. do 10 cm | D39: m | E39: 4.5 | G39: =E39*F39 -> 0 | H39: 0 | I39: =E39*H39 -> 0 | J39: 0 | K39: =E39*J39 -> 0 | O39: 2 | AA39: 1 | AB39: 1 | AC39: 1 | AZ39: 1 | BA39: =IF(AZ39=1,G39,0) -> 0 | BB39: =IF(AZ39=2,G39,0) -> 0 | BC39: =IF(AZ39=3,G39,0) -> 0 | BD39: =IF(AZ39=4,G39,0) -> 0 | BE39: =IF(AZ39=5,G39,0) -> 0 | CA39: 1 | CB39: 1
A40: 16 | B40: 919735112R00 | C40: Řezání stávajícího živičného krytu tl. 5 - 10 cm | D40: m | E40: 4.5 | G40: =E40*F40 -> 0 | H40: 0 | I40: =E40*H40 -> 0 | J40: 0 | K40: =E40*J40 -> 0 | O40: 2 | AA40: 1 | AB40: 1 | AC40: 1 | AZ40: 1 | BA40: =IF(AZ40=1,G40,0) -> 0 | BB40: =IF(AZ40=2,G40,0) -> 0 | BC40: =IF(AZ40=3,G40,0) -> 0 | BD40: =IF(AZ40=4,G40,0) -> 0 | BE40: =IF(AZ40=5,G40,0) -> 0 | CA40: 1 | CB40: 1
B41: Celkem za | C41: 91 Doplňující práce na komunikaci | G41: =SUM(G36:G40) -> 0 | I41: =SUM(I36:I40) -> 0.8521875 | K41: =SUM(K36:K40) -> 0 | O41: 4 | BA41: =SUM(BA36:BA40) -> 0 | BB41: =SUM(BB36:BB40) -> 0 | BC41: =SUM(BC36:BC40) -> 0 | BD41: =SUM(BD36:BD40) -> 0 | BE41: =SUM(BE36:BE40) -> 0
A42: Díl: | B42: 93 | C42: Dokončovací práce inženýrských staveb | O42: 1
A43: 17 | B43: 938909612R00 | C43: Odstranění nánosu na krajnicích tl. do 20 cm | D43: m2 | E43: 30 | G43: =E43*F43 -> 0 | H43: 0 | I43: =E43*H43 -> 0 | J43: -0.252 | K43: =E43*J43 -> -7.56 | O43: 2 | AA43: 1 | AB43: 1 | AC43: 1 | AZ43: 1 | BA43: =IF(AZ43=1,G43,0) -> 0 | BB43: =IF(AZ43=2,G43,0) -> 0 | BC43: =IF(AZ43=3,G43,0) -> 0 | BD43: =IF(AZ43=4,G43,0) -> 0 | BE43: =IF(AZ43=5,G43,0) -> 0 | CA43: 1 | CB43: 1
C44: Stávající krajnice a břehy:120,00*0,25 | E44: 30 | M44: Stávající krajnice a břehy:120,00*0,25
B45: Celkem za | C45: 93 Dokončovací práce inženýrských staveb | G45: =SUM(G42:G44) -> 0 | I45: =SUM(I42:I44) -> 0 | K45: =SUM(K42:K44) -> -7.56 | O45: 4 | BA45: =SUM(BA42:BA44) -> 0 | BB45: =SUM(BB42:BB44) -> 0 | BC45: =SUM(BC42:BC44) -> 0 | BD45: =SUM(BD42:BD44) -> 0 | BE45: =SUM(BE42:BE44) -> 0
A46: Díl: | B46: 99 | C46: Staveništní přesun hmot | O46: 1
A47: 18 | B47: 998225111R00 | C47: Přesun hmot, pozemní komunikace, kryt živičný | D47: t | E47: 100.6298325 | G47: =E47*F47 -> 0 | H47: 0 | I47: =E47*H47 -> 0 | K47: =E47*J47 -> 0 | O47: 2 | AA47: 7 | AB47: 1 | AC47: 2 | AZ47: 1 | BA47: =IF(AZ47=1,G47,0) -> 0 | BB47: =IF(AZ47=2,G47,0) -> 0 | BC47: =IF(AZ47=3,G47,0) -> 0 | BD47: =IF(AZ47=4,G47,0) -> 0 | BE47: =IF(AZ47=5,G47,0) -> 0 | CA47: 7 | CB47: 1
B48: Celkem za | C48: 99 Staveništní přesun hmot | G48: =SUM(G46:G47) -> 0 | I48: =SUM(I46:I47) -> 0 | K48: =SUM(K46:K47) -> 0 | O48: 4 | BA48: =SUM(BA46:BA47) -> 0 | BB48: =SUM(BB46:BB47) -> 0 | BC48: =SUM(BC46:BC47) -> 0 | BD48: =SUM(BD46:BD47) -> 0 | BE48: =SUM(BE46:BE47) -> 0
